Workbook

Sheet Display
F2: CQG Guggenheim S&P 500® Eq Wt Technology ETF Performance | AB2: =RTD("cqg.rtd", ,"SystemInfo", "Linetime") -> 42873.49576
B5: Exchange Traded Funds Performance | S5: Top 15 Performing Companies
B6: Symbol | C6: Description | H6: Last | I6: NC | J6: %NC | K6: NC/ATR | L6: Open | M6: High | N6: Low | O6: Volume | Q6: Ratio
B7: RYT | C7: =RTD("cqg.rtd", ,"ContractData",B7, "LongDescription",, "T") -> Guggenheim S&P 500 Eq Wt Technology ETF | H7: =RTD("cqg.rtd", ,"ContractData",B7, "LastTradeToday",, "T") -> 123.06 | I7: =RTD("cqg.rtd", ,"ContractData",B7, "NetLastTradeToday",, "T") -> 0.12 | J7: =RTD("cqg.rtd", ,"ContractData",B7, "PerCentNetLastTrade",, "T")/100 -> 0.0009760858956 | K7: =I7/RTD("cqg.rtd",,"StudyData",B7, "ATR", "MaType=Sim,Period=10", "ATR","D","-1","ALL",,,"FALSE","T")/100 -> 0.001123595506 | L7: =RTD("cqg.rtd", ,"ContractData",B7, "OPen",, "T") -> 122.65 | M7: =RTD("cqg.rtd", ,"ContractData", B7, "HIgh",, "T") -> 123.64 | N7: =RTD("cqg.rtd", ,"ContractData",B7, "LOw",, "T") -> 122.2 | O7: =RTD("cqg.rtd", ,"ContractData",B7, "T_CVol",, "T") -> 29324 | Q7: =IFERROR(O7/RTD("cqg.rtd",,"StudyData",B7, "MA", "InputChoice=Vol,MAType=Sim,Period=21", "MA","D","-1","all",,,,"T"),"") -> 0.2693849376
B8: SPY | C8: =RTD("cqg.rtd", ,"ContractData",B8, "LongDescription",, "T") -> SPDR S&P 500 | H8: =RTD("cqg.rtd", ,"ContractData",B8, "LastTradeToday",, "T") -> 236.2 | I8: =RTD("cqg.rtd", ,"ContractData",B8, "NetLastTradeToday",, "T") -> 0.38 | J8: =RTD("cqg.rtd", ,"ContractData",B8, "PerCentNetLastTrade",, "T")/100 -> 0.001611398524 | K8: =I8/RTD("cqg.rtd",,"StudyData",B8, "ATR", "MaType=Sim,Period=10", "ATR","D","-1","ALL",,,"FALSE","T")/100 -> 0.002651779484 | L8: =RTD("cqg.rtd", ,"ContractData",B8, "OPen",, "T") -> 235.73 | M8: =RTD("cqg.rtd", ,"ContractData", B8, "HIgh",, "T") -> 237.02 | N8: =RTD("cqg.rtd", ,"ContractData",B8, "LOw",, "T") -> 235.43 | O8: =RTD("cqg.rtd", ,"ContractData",B8, "T_CVol",, "T") -> 43038604 | Q8: =IFERROR(O8/RTD("cqg.rtd",,"StudyData",B8, "MA", "InputChoice=Vol,MAType=Sim,Period=21", "MA","D","-1","all",,,,"T"),"") -> 0.5839896638
B9: XLF | C9: =RTD("cqg.rtd", ,"ContractData",B9, "LongDescription",, "T") -> Financial Select Sector SPDR | H9: =RTD("cqg.rtd", ,"ContractData",B9, "LastTradeToday",, "T") -> 23.05 | I9: =RTD("cqg.rtd", ,"ContractData",B9, "NetLastTradeToday",, "T") -> -0.01 | J9: =RTD("cqg.rtd", ,"ContractData",B9, "PerCentNetLastTrade",, "T")/100 -> -0.0004336513443 | K9: =I9/RTD("cqg.rtd",,"StudyData",B9, "ATR", "MaType=Sim,Period=10", "ATR","D","-1","ALL",,,"FALSE","T")/100 -> -0.0003448275862 | L9: =RTD("cqg.rtd", ,"ContractData",B9, "OPen",, "T") -> 23.03 | M9: =RTD("cqg.rtd", ,"ContractData", B9, "HIgh",, "T") -> 23.25 | N9: =RTD("cqg.rtd", ,"ContractData",B9, "LOw",, "T") -> 23 | O9: =RTD("cqg.rtd", ,"ContractData",B9, "T_CVol",, "T") -> 62867267 | Q9: =IFERROR(O9/RTD("cqg.rtd",,"StudyData",B9, "MA", "InputChoice=Vol,MAType=Sim,Period=21", "MA","D","-1","all",,,,"T"),"") -> 0.8883119767
B10: GDX | C10: =RTD("cqg.rtd", ,"ContractData",B10, "LongDescription",, "T") -> Market Vectors Gold Miners ETF | H10: =RTD("cqg.rtd", ,"ContractData",B10, "LastTradeToday",, "T") -> 22.93 | I10: =RTD("cqg.rtd", ,"ContractData",B10, "NetLastTradeToday",, "T") -> -0.44 | J10: =RTD("cqg.rtd", ,"ContractData",B10, "PerCentNetLastTrade",, "T")/100 -> -0.0188275567 | K10: =I10/RTD("cqg.rtd",,"StudyData",B10, "ATR", "MaType=Sim,Period=10", "ATR","D","-1","ALL",,,"FALSE","T")/100 -> -0.00859375 | L10: =RTD("cqg.rtd", ,"ContractData",B10, "OPen",, "T") -> 23.11 | M10: =RTD("cqg.rtd", ,"ContractData", B10, "HIgh",, "T") -> 23.17 | N10: =RTD("cqg.rtd", ,"ContractData",B10, "LOw",, "T") -> 22.55 | O10: =RTD("cqg.rtd", ,"ContractData",B10, "T_CVol",, "T") -> 30553404 | Q10: =IFERROR(O10/RTD("cqg.rtd",,"StudyData",B10, "MA", "InputChoice=Vol,MAType=Sim,Period=21", "MA","D","-1","all",,,,"T"),"") -> 0.4915407362
B11: FXI | C11: =RTD("cqg.rtd", ,"ContractData",B11, "LongDescription",, "T") -> iShares China Large-Cap ETF | H11: =RTD("cqg.rtd", ,"ContractData",B11, "LastTradeToday",, "T") -> 38.93 | I11: =RTD("cqg.rtd", ,"ContractData",B11, "NetLastTradeToday",, "T") -> 0.01 | J11: =RTD("cqg.rtd", ,"ContractData",B11, "PerCentNetLastTrade",, "T")/100 -> 0.0002569373073 | K11: =I11/RTD("cqg.rtd",,"StudyData",B11, "ATR", "MaType=Sim,Period=10", "ATR","D","-1","ALL",,,"FALSE","T")/100 -> 0.0002159827214 | L11: =RTD("cqg.rtd", ,"ContractData",B11, "OPen",, "T") -> 38.72 | M11: =RTD("cqg.rtd", ,"ContractData", B11, "HIgh",, "T") -> 39.07 | N11: =RTD("cqg.rtd", ,"ContractData",B11, "LOw",, "T") -> 38.66 | O11: =RTD("cqg.rtd", ,"ContractData",B11, "T_CVol",, "T") -> 9595191 | Q11: =IFERROR(O11/RTD("cqg.rtd",,"StudyData",B11, "MA", "InputChoice=Vol,MAType=Sim,Period=21", "MA","D","-1","all",,,,"T"),"") -> 0.5712580643
B12: IWF | C12: =RTD("cqg.rtd", ,"ContractData",B12, "LongDescription",, "T") -> iShares Russell 1000 Growth ETF | H12: =RTD("cqg.rtd", ,"ContractData",B12, "LastTradeToday",, "T") -> 116.06 | I12: =RTD("cqg.rtd", ,"ContractData",B12, "NetLastTradeToday",, "T") -> 0.39 | J12: =RTD("cqg.rtd", ,"ContractData",B12, "PerCentNetLastTrade",, "T")/100 -> 0.003371660759 | K12: =I12/RTD("cqg.rtd",,"StudyData",B12, "ATR", "MaType=Sim,Period=10", "ATR","D","-1","ALL",,,"FALSE","T")/100 -> 0.005786350148 | L12: =RTD("cqg.rtd", ,"ContractData",B12, "OPen",, "T") -> 115.65 | M12: =RTD("cqg.rtd", ,"ContractData", B12, "HIgh",, "T") -> 116.45 | N12: =RTD("cqg.rtd", ,"ContractData",B12, "LOw",, "T") -> 115.57 | O12: =RTD("cqg.rtd", ,"ContractData",B12, "T_CVol",, "T") -> 791056 | Q12: =IFERROR(O12/RTD("cqg.rtd",,"StudyData",B12, "MA", "InputChoice=Vol,MAType=Sim,Period=21", "MA","D","-1","all",,,,"T"),"") -> 0.5664634417
B13: IWO | C13: =RTD("cqg.rtd", ,"ContractData",B13, "LongDescription",, "T") -> iShares Russell 2000 Growth ETF | H13: =RTD("cqg.rtd", ,"ContractData",B13, "LastTradeToday",, "T") -> 160.73 | I13: =RTD("cqg.rtd", ,"ContractData",B13, "NetLastTradeToday",, "T") -> -0.28 | J13: =RTD("cqg.rtd", ,"ContractData",B13, "PerCentNetLastTrade",, "T")/100 -> -0.001739022421 | K13: =I13/RTD("cqg.rtd",,"StudyData",B13, "ATR", "MaType=Sim,Period=10", "ATR","D","-1","ALL",,,"FALSE","T")/100 -> -0.001389578164 | L13: =RTD("cqg.rtd", ,"ContractData",B13, "OPen",, "T") -> 160.56 | M13: =RTD("cqg.rtd", ,"ContractData", B13, "HIgh",, "T") -> 162.07 | N13: =RTD("cqg.rtd", ,"ContractData",B13, "LOw",, "T") -> 160.19 | O13: =RTD("cqg.rtd", ,"ContractData",B13, "T_CVol",, "T") -> 280059 | Q13: =IFERROR(O13/RTD("cqg.rtd",,"StudyData",B13, "MA", "InputChoice=Vol,MAType=Sim,Period=21", "MA","D","-1","all",,,,"T"),"") -> 0.5346968321
B14: EP | C14: =RTD("cqg.rtd", ,"ContractData",B14, "LongDescription",, "T") -> E-Mini S&P 500, Jun 17 | H14: =RTD("cqg.rtd", ,"ContractData",B14, "LastTradeToday",, "T") -> 2359.25 | I14: =RTD("cqg.rtd", ,"ContractData",B14, "NetLastTradeToday",, "T") -> 1.75 | J14: =RTD("cqg.rtd", ,"ContractData",B14, "PerCentNetLastTrade",, "T")/100 -> 0.0007423117709 | K14: =I14/RTD("cqg.rtd",,"StudyData",B14, "ATR", "MaType=Sim,Period=10", "ATR","D","-1","ALL",,,"FALSE","T")/100 -> 0.001086956522 | L14: =RTD("cqg.rtd", ,"ContractData",B14, "OPen",, "T") -> 2355 | M14: =RTD("cqg.rtd", ,"ContractData", B14, "HIgh",, "T") -> 2367.5 | N14: =RTD("cqg.rtd", ,"ContractData",B14, "LOw",, "T") -> 2344.5 | O14: =RTD("cqg.rtd", ,"ContractData",B14, "T_CVol",, "T") -> 1548252 | Q14: =IFERROR(O14/RTD("cqg.rtd",,"StudyData",B14, "MA", "InputChoice=Vol,MAType=Sim,Period=21", "MA","D","-1","all",,,,"T"),"") -> 1.227743808
B15: XLE | C15: =RTD("cqg.rtd", ,"ContractData",B15, "LongDescription",, "T") -> Energy Select Sector SPDR | H15: =RTD("cqg.rtd", ,"ContractData",B15, "LastTradeToday",, "T") -> 67.25 | I15: =RTD("cqg.rtd", ,"ContractData",B15, "NetLastTradeToday",, "T") -> -0.02 | J15: =RTD("cqg.rtd", ,"ContractData",B15, "PerCentNetLastTrade",, "T")/100 -> -0.0002973093504 | K15: =I15/RTD("cqg.rtd",,"StudyData",B15, "ATR", "MaType=Sim,Period=10", "ATR","D","-1","ALL",,,"FALSE","T")/100 -> -0.0002096436059 | L15: =RTD("cqg.rtd", ,"ContractData",B15, "OPen",, "T") -> 66.97 | M15: =RTD("cqg.rtd", ,"ContractData", B15, "HIgh",, "T") -> 67.49 | N15: =RTD("cqg.rtd", ,"ContractData",B15, "LOw",, "T") -> 66.72 | O15: =RTD("cqg.rtd", ,"ContractData",B15, "T_CVol",, "T") -> 6192927 | Q15: =IFERROR(O15/RTD("cqg.rtd",,"StudyData",B15, "MA", "InputChoice=Vol,MAType=Sim,Period=21", "MA","D","-1","all",,,,"T"),"") -> 0.3851194844
B16: USO | C16: =RTD("cqg.rtd", ,"ContractData",B16, "LongDescription",, "T") -> United States Oil Fund | H16: =RTD("cqg.rtd", ,"ContractData",B16, "LastTradeToday",, "T") -> 10.27 | I16: =RTD("cqg.rtd", ,"ContractData",B16, "NetLastTradeToday",, "T") -> 0.09 | J16: =RTD("cqg.rtd", ,"ContractData",B16, "PerCentNetLastTrade",, "T")/100 -> 0.00884086444 | K16: =I16/RTD("cqg.rtd",,"StudyData",B16, "ATR", "MaType=Sim,Period=10", "ATR","D","-1","ALL",,,"FALSE","T")/100 -> 0.003435114504 | L16: =RTD("cqg.rtd", ,"ContractData",B16, "OPen",, "T") -> 10.09 | M16: =RTD("cqg.rtd", ,"ContractData", B16, "HIgh",, "T") -> 10.31 | N16: =RTD("cqg.rtd", ,"ContractData",B16, "LOw",, "T") -> 10.08 | O16: =RTD("cqg.rtd", ,"ContractData",B16, "T_CVol",, "T") -> 9054555 | Q16: =IFERROR(O16/RTD("cqg.rtd",,"StudyData",B16, "MA", "InputChoice=Vol,MAType=Sim,Period=21", "MA","D","-1","all",,,,"T"),"") -> 0.2912805727
C17: Top 15 Description | H17: Last | I17: NC | J17: %NC | K17: NC/ATR | L17: Open | M17: High | N17: Low | O17: Volume | Q17: Ratio
A18: =TRIM(RYT!O1) -> S.US.QRVO | B18: News | C18: =RTD("cqg.rtd", ,"ContractData",A18, "LongDescription",, "T")&" ("&RIGHT(A18,LEN(A18)-5)&")" -> Qorvo (QRVO) | H18: =RTD("cqg.rtd", ,"ContractData",A18, "LastTradeToday",, "T") -> 74.66 | I18: =RTD("cqg.rtd", ,"ContractData",A18, "NetLastTradeToday",, "T") -> 2.12 | J18: =RTD("cqg.rtd", ,"ContractData",A18, "PerCentNetLastTrade",, "T")/100 -> 0.02922525503 | K18: =I18/RTD("cqg.rtd",,"StudyData",A18, "ATR", "MaType=Sim,Period=10", "ATR","D","-1","ALL",,,"FALSE","T")/100 -> 0.009706959707 | L18: =RTD("cqg.rtd", ,"ContractData",A18, "OPen",, "T") -> 72.16 | M18: =RTD("cqg.rtd", ,"ContractData", A18, "HIgh",, "T") -> 75.42 | N18: =RTD("cqg.rtd", ,"ContractData",A18, "LOw",, "T") -> 71.75 | O18: =RTD("cqg.rtd", ,"ContractData",A18, "T_CVol",, "T") -> 1545499 | Q18: =IFERROR(O18/RTD("cqg.rtd",,"StudyData",A18, "MA", "InputChoice=Vol,MAType=Sim,Period=21", "MA","D","-1","all",,,,"T"),"") -> 0.8201770586 | R18: =RYT!Q1 -> https://finance.yahoo.com/quote/QRVO
A19: =TRIM(RYT!O2) -> S.US.SWKS | B19: News | C19: =RTD("cqg.rtd", ,"ContractData",A19, "LongDescription",, "T")&" ("&RIGHT(A19,LEN(A19)-5)&")" -> Skyworks Solutions Inc (SWKS) | H19: =RTD("cqg.rtd", ,"ContractData",A19, "LastTradeToday",, "T") -> 102.61 | I19: =RTD("cqg.rtd", ,"ContractData",A19, "NetLastTradeToday",, "T") -> 2.06 | J19: =RTD("cqg.rtd", ,"ContractData",A19, "PerCentNetLastTrade",, "T")/100 -> 0.02048731974 | K19: =I19/RTD("cqg.rtd",,"StudyData",A19, "ATR", "MaType=Sim,Period=10", "ATR","D","-1","ALL",,,"FALSE","T")/100 -> 0.01131868132 | L19: =RTD("cqg.rtd", ,"ContractData",A19, "OPen",, "T") -> 100.63 | M19: =RTD("cqg.rtd", ,"ContractData", A19, "HIgh",, "T") -> 103.04 | N19: =RTD("cqg.rtd", ,"ContractData",A19, "LOw",, "T") -> 100.22 | O19: =RTD("cqg.rtd", ,"ContractData",A19, "T_CVol",, "T") -> 953238 | Q19: =IFERROR(O19/RTD("cqg.rtd",,"StudyData",A19, "MA", "InputChoice=Vol,MAType=Sim,Period=21", "MA","D","-1","all",,,,"T"),"") -> 0.4880301084 | R19: =RYT!Q2 -> https://finance.yahoo.com/quote/SWKS
A20: =TRIM(RYT!O3) -> S.US.AMAT | B20: News | C20: =RTD("cqg.rtd", ,"ContractData",A20, "LongDescription",, "T")&" ("&RIGHT(A20,LEN(A20)-5)&")" -> Applied Materials Inc (AMAT) | H20: =RTD("cqg.rtd", ,"ContractData",A20, "LastTradeToday",, "T") -> 43.58 | I20: =RTD("cqg.rtd", ,"ContractData",A20, "NetLastTradeToday",, "T") -> 0.82 | J20: =RTD("cqg.rtd", ,"ContractData",A20, "PerCentNetLastTrade",, "T")/100 -> 0.01917680075 | K20: =I20/RTD("cqg.rtd",,"StudyData",A20, "ATR", "MaType=Sim,Period=10", "ATR","D","-1","ALL",,,"FALSE","T")/100 -> 0.009436133487 | L20: =RTD("cqg.rtd", ,"ContractData",A20, "OPen",, "T") -> 43.1 | M20: =RTD("cqg.rtd", ,"ContractData", A20, "HIgh",, "T") -> 43.73 | N20: =RTD("cqg.rtd", ,"ContractData",A20, "LOw",, "T") -> 42.83 | O20: =RTD("cqg.rtd", ,"ContractData",A20, "T_CVol",, "T") -> 9296686 | Q20: =IFERROR(O20/RTD("cqg.rtd",,"StudyData",A20, "MA", "InputChoice=Vol,MAType=Sim,Period=21", "MA","D","-1","all",,,,"T"),"") -> 1.023301453 | R20: =RYT!Q3 -> https://finance.yahoo.com/quote/AMAT
A21: =TRIM(RYT!O4) -> S.US.NVDA | B21: News | C21: =RTD("cqg.rtd", ,"ContractData",A21, "LongDescription",, "T")&" ("&RIGHT(A21,LEN(A21)-5)&")" -> NVIDIA Corp (NVDA) | H21: =RTD("cqg.rtd", ,"ContractData",A21, "LastTradeToday",, "T") -> 130.16 | I21: =RTD("cqg.rtd", ,"ContractData",A21, "NetLastTradeToday",, "T") -> 2.44 | J21: =RTD("cqg.rtd", ,"ContractData",A21, "PerCentNetLastTrade",, "T")/100 -> 0.01910429064 | K21: =I21/RTD("cqg.rtd",,"StudyData",A21, "ATR", "MaType=Sim,Period=10", "ATR","D","-1","ALL",,,"FALSE","T")/100 -> 0.004049120478 | L21: =RTD("cqg.rtd", ,"ContractData",A21, "OPen",, "T") -> 129.5 | M21: =RTD("cqg.rtd", ,"ContractData", A21, "HIgh",, "T") -> 132.78 | N21: =RTD("cqg.rtd", ,"ContractData",A21, "LOw",, "T") -> 127.05 | O21: =RTD("cqg.rtd", ,"ContractData",A21, "T_CVol",, "T") -> 18027814 | Q21: =IFERROR(O21/RTD("cqg.rtd",,"StudyData",A21, "MA", "InputChoice=Vol,MAType=Sim,Period=21", "MA","D","-1","all",,,,"T"),"") -> 1.057586044 | R21: =RYT!Q4 -> https://finance.yahoo.com/quote/NVDA
A22: =TRIM(RYT!O5) -> S.US.ADI | B22: News | C22: =RTD("cqg.rtd", ,"ContractData",A22, "LongDescription",, "T")&" ("&RIGHT(A22,LEN(A22)-5)&")" -> Analog Devices Inc (ADI) | H22: =RTD("cqg.rtd", ,"ContractData",A22, "LastTradeToday",, "T") -> 79.88 | I22: =RTD("cqg.rtd", ,"ContractData",A22, "NetLastTradeToday",, "T") -> 1.46 | J22: =RTD("cqg.rtd", ,"ContractData",A22, "PerCentNetLastTrade",, "T")/100 -> 0.01861769957 | K22: =I22/RTD("cqg.rtd",,"StudyData",A22, "ATR", "MaType=Sim,Period=10", "ATR","D","-1","ALL",,,"FALSE","T")/100 -> 0.009864864865 | L22: =RTD("cqg.rtd", ,"ContractData",A22, "OPen",, "T") -> 79.52 | M22: =RTD("cqg.rtd", ,"ContractData", A22, "HIgh",, "T") -> 81.32 | N22: =RTD("cqg.rtd", ,"ContractData",A22, "LOw",, "T") -> 79.03 | O22: =RTD("cqg.rtd", ,"ContractData",A22, "T_CVol",, "T") -> 2739669 | Q22: =IFERROR(O22/RTD("cqg.rtd",,"StudyData",A22, "MA", "InputChoice=Vol,MAType=Sim,Period=21", "MA","D","-1","all",,,,"T"),"") -> 0.7857100317 | R22: =RYT!Q5 -> https://finance.yahoo.com/quote/ADI
A23: =TRIM(RYT!O6) -> S.US.AVGO | B23: News | C23: =RTD("cqg.rtd", ,"ContractData",A23, "LongDescription",, "T")&" ("&RIGHT(A23,LEN(A23)-5)&")" -> Broadcom Limited (AVGO) | H23: =RTD("cqg.rtd", ,"ContractData",A23, "LastTradeToday",, "T") -> 235.42 | I23: =RTD("cqg.rtd", ,"ContractData",A23, "NetLastTradeToday",, "T") -> 4.24 | J23: =RTD("cqg.rtd", ,"ContractData",A23, "PerCentNetLastTrade",, "T")/100 -> 0.01834068691 | K23: =I23/RTD("cqg.rtd",,"StudyData",A23, "ATR", "MaType=Sim,Period=10", "ATR","D","-1","ALL",,,"FALSE","T")/100 -> 0.009265734266 | L23: =RTD("cqg.rtd", ,"ContractData",A23, "OPen",, "T") -> 231.58 | M23: =RTD("cqg.rtd", ,"ContractData", A23, "HIgh",, "T") -> 237.1 | N23: =RTD("cqg.rtd", ,"ContractData",A23, "LOw",, "T") -> 227.68 | O23: =RTD("cqg.rtd", ,"ContractData",A23, "T_CVol",, "T") -> 1749287 | Q23: =IFERROR(O23/RTD("cqg.rtd",,"StudyData",A23, "MA", "InputChoice=Vol,MAType=Sim,Period=21", "MA","D","-1","all",,,,"T"),"") -> 0.9190789312 | R23: =RYT!Q6 -> https://finance.yahoo.com/quote/AVGO
A24: =TRIM(RYT!O7) -> S.US.XLNX | B24: News | C24: =RTD("cqg.rtd", ,"ContractData",A24, "LongDescription",, "T")&" ("&RIGHT(A24,LEN(A24)-5)&")" -> Xilinx Inc (XLNX) | H24: =RTD("cqg.rtd", ,"ContractData",A24, "LastTradeToday",, "T") -> 65.79 | I24: =RTD("cqg.rtd", ,"ContractData",A24, "NetLastTradeToday",, "T") -> 1.03 | J24: =RTD("cqg.rtd", ,"ContractData",A24, "PerCentNetLastTrade",, "T")/100 -> 0.01590487956 | K24: =I24/RTD("cqg.rtd",,"StudyData",A24, "ATR", "MaType=Sim,Period=10", "ATR","D","-1","ALL",,,"FALSE","T")/100 -> 0.0110042735 | L24: =RTD("cqg.rtd", ,"ContractData",A24, "OPen",, "T") -> 64.55 | M24: =RTD("cqg.rtd", ,"ContractData", A24, "HIgh",, "T") -> 65.8 | N24: =RTD("cqg.rtd", ,"ContractData",A24, "LOw",, "T") -> 64.29 | O24: =RTD("cqg.rtd", ,"ContractData",A24, "T_CVol",, "T") -> 2465593 | Q24: =IFERROR(O24/RTD("cqg.rtd",,"StudyData",A24, "MA", "InputChoice=Vol,MAType=Sim,Period=21", "MA","D","-1","all",,,,"T"),"") -> 0.6924364712 | R24: =RYT!Q7 -> https://finance.yahoo.com/quote/XLNX
A25: =TRIM(RYT!O8) -> S.US.ATVI | B25: News | C25: =RTD("cqg.rtd", ,"ContractData",A25, "LongDescription",, "T")&" ("&RIGHT(A25,LEN(A25)-5)&")" -> Activision Blizzard Inc (ATVI) | H25: =RTD("cqg.rtd", ,"ContractData",A25, "LastTradeToday",, "T") -> 54.98 | I25: =RTD("cqg.rtd", ,"ContractData",A25, "NetLastTradeToday",, "T") -> 0.75 | J25: =RTD("cqg.rtd", ,"ContractData",A25, "PerCentNetLastTrade",, "T")/100 -> 0.0138299834 | K25: =I25/RTD("cqg.rtd",,"StudyData",A25, "ATR", "MaType=Sim,Period=10", "ATR","D","-1","ALL",,,"FALSE","T")/100 -> 0.006567425569 | L25: =RTD("cqg.rtd", ,"ContractData",A25, "OPen",, "T") -> 53.9 | M25: =RTD("cqg.rtd", ,"ContractData", A25, "HIgh",, "T") -> 55.27 | N25: =RTD("cqg.rtd", ,"ContractData",A25, "LOw",, "T") -> 53.66 | O25: =RTD("cqg.rtd", ,"ContractData",A25, "T_CVol",, "T") -> 4122527 | Q25: =IFERROR(O25/RTD("cqg.rtd",,"StudyData",A25, "MA", "InputChoice=Vol,MAType=Sim,Period=21", "MA","D","-1","all",,,,"T"),"") -> 0.7356602822 | R25: =RYT!Q8 -> https://finance.yahoo.com/quote/ATVI
A26: =TRIM(RYT!O9) -> S.US.XRX | B26: News | C26: =RTD("cqg.rtd", ,"ContractData",A26, "LongDescription",, "T")&" ("&RIGHT(A26,LEN(A26)-5)&")" -> Xerox Corp (XRX) | H26: =RTD("cqg.rtd", ,"ContractData",A26, "LastTradeToday",, "T") -> 6.97 | I26: =RTD("cqg.rtd", ,"ContractData",A26, "NetLastTradeToday",, "T") -> 0.09 | J26: =RTD("cqg.rtd", ,"ContractData",A26, "PerCentNetLastTrade",, "T")/100 -> 0.01308139535 | K26: =I26/RTD("cqg.rtd",,"StudyData",A26, "ATR", "MaType=Sim,Period=10", "ATR","D","-1","ALL",,,"FALSE","T")/100 -> 0.00756302521 | L26: =RTD("cqg.rtd", ,"ContractData",A26, "OPen",, "T") -> 6.91 | M26: =RTD("cqg.rtd", ,"ContractData", A26, "HIgh",, "T") -> 7 | N26: =RTD("cqg.rtd", ,"ContractData",A26, "LOw",, "T") -> 6.87 | O26: =RTD("cqg.rtd", ,"ContractData",A26, "T_CVol",, "T") -> 4330195 | Q26: =IFERROR(O26/RTD("cqg.rtd",,"StudyData",A26, "MA", "InputChoice=Vol,MAType=Sim,Period=21", "MA","D","-1","all",,,,"T"),"") -> 0.5317175154 | R26: =RYT!Q9 -> https://finance.yahoo.com/quote/XRX
A27: =TRIM(RYT!O10) -> S.US.AAPL | B27: News | C27: =RTD("cqg.rtd", ,"ContractData",A27, "LongDescription",, "T")&" ("&RIGHT(A27,LEN(A27)-5)&")" -> Apple Inc (AAPL) | H27: =RTD("cqg.rtd", ,"ContractData",A27, "LastTradeToday",, "T") -> 152.07 | I27: =RTD("cqg.rtd", ,"ContractData",A27, "NetLastTradeToday",, "T") -> 1.82 | J27: =RTD("cqg.rtd", ,"ContractData",A27, "PerCentNetLastTrade",, "T")/100 -> 0.01211314476 | K27: =I27/RTD("cqg.rtd",,"StudyData",A27, "ATR", "MaType=Sim,Period=10", "ATR","D","-1","ALL",,,"FALSE","T")/100 -> 0.007222222222 | L27: =RTD("cqg.rtd", ,"ContractData",A27, "OPen",, "T") -> 151.27 | M27: =RTD("cqg.rtd", ,"ContractData", A27, "HIgh",, "T") -> 153.34 | N27: =RTD("cqg.rtd", ,"ContractData",A27, "LOw",, "T") -> 151.13 | O27: =RTD("cqg.rtd", ,"ContractData",A27, "T_CVol",, "T") -> 20069127 | Q27: =IFERROR(O27/RTD("cqg.rtd",,"StudyData",A27, "MA", "InputChoice=Vol,MAType=Sim,Period=21", "MA","D","-1","all",,,,"T"),"") -> 0.7085950505 | R27: =RYT!Q10 -> https://finance.yahoo.com/quote/AAPL | S27: Bottom 15 Performing Companies
A28: =TRIM(RYT!O11) -> S.US.FB | B28: News | C28: =RTD("cqg.rtd", ,"ContractData",A28, "LongDescription",, "T")&" ("&RIGHT(A28,LEN(A28)-5)&")" -> Facebook, Inc. (FB) | H28: =RTD("cqg.rtd", ,"ContractData",A28, "LastTradeToday",, "T") -> 146.6 | I28: =RTD("cqg.rtd", ,"ContractData",A28, "NetLastTradeToday",, "T") -> 1.75 | J28: =RTD("cqg.rtd", ,"ContractData",A28, "PerCentNetLastTrade",, "T")/100 -> 0.01208146358 | K28: =I28/RTD("cqg.rtd",,"StudyData",A28, "ATR", "MaType=Sim,Period=10", "ATR","D","-1","ALL",,,"FALSE","T")/100 -> 0.008486905917 | L28: =RTD("cqg.rtd", ,"ContractData",A28, "OPen",, "T") -> 144.72 | M28: =RTD("cqg.rtd", ,"ContractData", A28, "HIgh",, "T") -> 147.42 | N28: =RTD("cqg.rtd", ,"ContractData",A28, "LOw",, "T") -> 144.51 | O28: =RTD("cqg.rtd", ,"ContractData",A28, "T_CVol",, "T") -> 13207443 | Q28: =IFERROR(O28/RTD("cqg.rtd",,"StudyData",A28, "MA", "InputChoice=Vol,MAType=Sim,Period=21", "MA","D","-1","all",,,,"T"),"") -> 0.7197069706 | R28: =RYT!Q11 -> https://finance.yahoo.com/quote/FB
A29: =TRIM(RYT!O12) -> S.US.EA | B29: News | C29: =RTD("cqg.rtd", ,"ContractData",A29, "LongDescription",, "T")&" ("&RIGHT(A29,LEN(A29)-5)&")" -> Electronic Arts (EA) | H29: =RTD("cqg.rtd", ,"ContractData",A29, "LastTradeToday",, "T") -> 106.51 | I29: =RTD("cqg.rtd", ,"ContractData",A29, "NetLastTradeToday",, "T") -> 1.27 | J29: =RTD("cqg.rtd", ,"ContractData",A29, "PerCentNetLastTrade",, "T")/100 -> 0.01206765488 | K29: =I29/RTD("cqg.rtd",,"StudyData",A29, "ATR", "MaType=Sim,Period=10", "ATR","D","-1","ALL",,,"FALSE","T")/100 -> 0.003698311008 | L29: =RTD("cqg.rtd", ,"ContractData",A29, "OPen",, "T") -> 104.71 | M29: =RTD("cqg.rtd", ,"ContractData", A29, "HIgh",, "T") -> 107.62 | N29: =RTD("cqg.rtd", ,"ContractData",A29, "LOw",, "T") -> 104.34 | O29: =RTD("cqg.rtd", ,"ContractData",A29, "T_CVol",, "T") -> 1750468 | Q29: =IFERROR(O29/RTD("cqg.rtd",,"StudyData",A29, "MA", "InputChoice=Vol,MAType=Sim,Period=21", "MA","D","-1","all",,,,"T"),"") -> 0.4744849433 | R29: =RYT!Q12 -> https://finance.yahoo.com/quote/EA
A30: =TRIM(RYT!O13) -> S.US.GPN | B30: News | C30: =RTD("cqg.rtd", ,"ContractData",A30, "LongDescription",, "T")&" ("&RIGHT(A30,LEN(A30)-5)&")" -> Global Payments (GPN) | H30: =RTD("cqg.rtd", ,"ContractData",A30, "LastTradeToday",, "T") -> 89.06 | I30: =RTD("cqg.rtd", ,"ContractData",A30, "NetLastTradeToday",, "T") -> 0.96 | J30: =RTD("cqg.rtd", ,"ContractData",A30, "PerCentNetLastTrade",, "T")/100 -> 0.01089670829 | K30: =I30/RTD("cqg.rtd",,"StudyData",A30, "ATR", "MaType=Sim,Period=10", "ATR","D","-1","ALL",,,"FALSE","T")/100 -> 0.006233766234 | L30: =RTD("cqg.rtd", ,"ContractData",A30, "OPen",, "T") -> 88.09 | M30: =RTD("cqg.rtd", ,"ContractData", A30, "HIgh",, "T") -> 89.15 | N30: =RTD("cqg.rtd", ,"ContractData",A30, "LOw",, "T") -> 87.68 | O30: =RTD("cqg.rtd", ,"ContractData",A30, "T_CVol",, "T") -> 285606 | Q30: =IFERROR(O30/RTD("cqg.rtd",,"StudyData",A30, "MA", "InputChoice=Vol,MAType=Sim,Period=21", "MA","D","-1","all",,,,"T"),"") -> 0.2122465558 | R30: =RYT!Q13 -> https://finance.yahoo.com/quote/GPN
A31: =TRIM(RYT!O14) -> S.US.ADP | B31: News | C31: =RTD("cqg.rtd", ,"ContractData",A31, "LongDescription",, "T")&" ("&RIGHT(A31,LEN(A31)-5)&")" -> Auto Data Processing Inc (ADP) | H31: =RTD("cqg.rtd", ,"ContractData",A31, "LastTradeToday",, "T") -> 98.27 | I31: =RTD("cqg.rtd", ,"ContractData",A31, "NetLastTradeToday",, "T") -> 0.97 | J31: =RTD("cqg.rtd", ,"ContractData",A31, "PerCentNetLastTrade",, "T")/100 -> 0.009969167523 | K31: =I31/RTD("cqg.rtd",,"StudyData",A31, "ATR", "MaType=Sim,Period=10", "ATR","D","-1","ALL",,,"FALSE","T")/100 -> 0.006958393113 | L31: =RTD("cqg.rtd", ,"ContractData",A31, "OPen",, "T") -> 97.15 | M31: =RTD("cqg.rtd", ,"ContractData", A31, "HIgh",, "T") -> 98.39 | N31: =RTD("cqg.rtd", ,"ContractData",A31, "LOw",, "T") -> 96.8 | O31: =RTD("cqg.rtd", ,"ContractData",A31, "T_CVol",, "T") -> 875586 | Q31: =IFERROR(O31/RTD("cqg.rtd",,"StudyData",A31, "MA", "InputChoice=Vol,MAType=Sim,Period=21", "MA","D","-1","all",,,,"T"),"") -> 0.3637778997 | R31: =RYT!Q14 -> https://finance.yahoo.com/quote/ADP
A32: =TRIM(RYT!O15) -> S.US.MU | B32: News | C32: =RTD("cqg.rtd", ,"ContractData",A32, "LongDescription",, "T")&" ("&RIGHT(A32,LEN(A32)-5)&")" -> Micron Technology Inc (MU) | H32: =RTD("cqg.rtd", ,"ContractData",A32, "LastTradeToday",, "T") -> 27.24 | I32: =RTD("cqg.rtd", ,"ContractData",A32, "NetLastTradeToday",, "T") -> 0.24 | J32: =RTD("cqg.rtd", ,"ContractData",A32, "PerCentNetLastTrade",, "T")/100 -> 0.008888888889 | K32: =I32/RTD("cqg.rtd",,"StudyData",A32, "ATR", "MaType=Sim,Period=10", "ATR","D","-1","ALL",,,"FALSE","T")/100 -> 0.003195739015 | L32: =RTD("cqg.rtd", ,"ContractData",A32, "OPen",, "T") -> 27.15 | M32: =RTD("cqg.rtd", ,"ContractData", A32, "HIgh",, "T") -> 27.89 | N32: =RTD("cqg.rtd", ,"ContractData",A32, "LOw",, "T") -> 27.08 | O32: =RTD("cqg.rtd", ,"ContractData",A32, "T_CVol",, "T") -> 17582287 | Q32: =IFERROR(O32/RTD("cqg.rtd",,"StudyData",A32, "MA", "InputChoice=Vol,MAType=Sim,Period=21", "MA","D","-1","all",,,,"T"),"") -> 0.7114163754 | R32: =RYT!Q15 -> https://finance.yahoo.com/quote/MU
C33: Bottom 15 Description | H33: Last | I33: NC | J33: %NC | K33: NC/ATR | L33: Open | M33: High | N33: Low | O33: Volume | Q33: Ratio
A34: =TRIM(RYT!O55) -> S.US.APH | B34: News | C34: =RTD("cqg.rtd", ,"ContractData",A34, "LongDescription",, "T")&" ("&RIGHT(A34,LEN(A34)-5)&")" -> Amphenol (APH) | H34: =RTD("cqg.rtd", ,"ContractData",A34, "LastTradeToday",, "T") -> 72.24 | I34: =RTD("cqg.rtd", ,"ContractData",A34, "NetLastTradeToday",, "T") -> -0.32 | J34: =RTD("cqg.rtd", ,"ContractData",A34, "PerCentNetLastTrade",, "T")/100 -> -0.00441014333 | K34: =I34/RTD("cqg.rtd",,"StudyData",A34, "ATR", "MaType=Sim,Period=10", "ATR","D","-1","ALL",,,"FALSE","T")/100 -> -0.004637681159 | L34: =RTD("cqg.rtd", ,"ContractData",A34, "OPen",, "T") -> 72.13 | M34: =RTD("cqg.rtd", ,"ContractData", A34, "HIgh",, "T") -> 72.5 | N34: =RTD("cqg.rtd", ,"ContractData",A34, "LOw",, "T") -> 71.37 | O34: =RTD("cqg.rtd", ,"ContractData",A34, "T_CVol",, "T") -> 328098 | Q34: =IFERROR(O34/RTD("cqg.rtd",,"StudyData",A34, "MA", "InputChoice=Vol,MAType=Sim,Period=21", "MA","D","-1","all",,,,"T"),"") -> 0.304315511 | R34: =RYT!Q55 -> https://finance.yahoo.com/quote/APH
A35: =TRIM(RYT!O56) -> S.US.CA | B35: News | C35: =RTD("cqg.rtd", ,"ContractData",A35, "LongDescription",, "T")&" ("&RIGHT(A35,LEN(A35)-5)&")" -> CA Inc. (CA) | H35: =RTD("cqg.rtd", ,"ContractData",A35, "LastTradeToday",, "T") -> 31.05 | I35: =RTD("cqg.rtd", ,"ContractData",A35, "NetLastTradeToday",, "T") -> -0.16 | J35: =RTD("cqg.rtd", ,"ContractData",A35, "PerCentNetLastTrade",, "T")/100 -> -0.005126561999 | K35: =I35/RTD("cqg.rtd",,"StudyData",A35, "ATR", "MaType=Sim,Period=10", "ATR","D","-1","ALL",,,"FALSE","T")/100 -> -0.002649006623 | L35: =RTD("cqg.rtd", ,"ContractData",A35, "OPen",, "T") -> 31.26 | M35: =RTD("cqg.rtd", ,"ContractData", A35, "HIgh",, "T") -> 31.35 | N35: =RTD("cqg.rtd", ,"ContractData",A35, "LOw",, "T") -> 30.92 | O35: =RTD("cqg.rtd", ,"ContractData",A35, "T_CVol",, "T") -> 1507690 | Q35: =IFERROR(O35/RTD("cqg.rtd",,"StudyData",A35, "MA", "InputChoice=Vol,MAType=Sim,Period=21", "MA","D","-1","all",,,,"T"),"") -> 0.5434522772 | R35: =RYT!Q56 -> https://finance.yahoo.com/quote/CA
A36: =TRIM(RYT!O57) -> S.US.CTXS | B36: News | C36: =RTD("cqg.rtd", ,"ContractData",A36, "LongDescription",, "T")&" ("&RIGHT(A36,LEN(A36)-5)&")" -> Citrix Systems Inc (CTXS) | H36: =RTD("cqg.rtd", ,"ContractData",A36, "LastTradeToday",, "T") -> 82.3 | I36: =RTD("cqg.rtd", ,"ContractData",A36, "NetLastTradeToday",, "T") -> -0.44 | J36: =RTD("cqg.rtd", ,"ContractData",A36, "PerCentNetLastTrade",, "T")/100 -> -0.005317863186 | K36: =I36/RTD("cqg.rtd",,"StudyData",A36, "ATR", "MaType=Sim,Period=10", "ATR","D","-1","ALL",,,"FALSE","T")/100 -> -0.003358778626 | L36: =RTD("cqg.rtd", ,"ContractData",A36, "OPen",, "T") -> 82.52 | M36: =RTD("cqg.rtd", ,"ContractData", A36, "HIgh",, "T") -> 83.04 | N36: =RTD("cqg.rtd", ,"ContractData",A36, "LOw",, "T") -> 81.8 | O36: =RTD("cqg.rtd", ,"ContractData",A36, "T_CVol",, "T") -> 503770 | Q36: =IFERROR(O36/RTD("cqg.rtd",,"StudyData",A36, "MA", "InputChoice=Vol,MAType=Sim,Period=21", "MA","D","-1","all",,,,"T"),"") -> 0.2560371112 | R36: =RYT!Q57 -> https://finance.yahoo.com/quote/CTXS
A37: =TRIM(RYT!O58) -> S.US.STX | B37: News | C37: =RTD("cqg.rtd", ,"ContractData",A37, "LongDescription",, "T")&" ("&RIGHT(A37,LEN(A37)-5)&")" -> Seagate Technology (STX) | H37: =RTD("cqg.rtd", ,"ContractData",A37, "LastTradeToday",, "T") -> 41.89 | I37: =RTD("cqg.rtd", ,"ContractData",A37, "NetLastTradeToday",, "T") -> -0.27 | J37: =RTD("cqg.rtd", ,"ContractData",A37, "PerCentNetLastTrade",, "T")/100 -> -0.006404174573 | K37: =I37/RTD("cqg.rtd",,"StudyData",A37, "ATR", "MaType=Sim,Period=10", "ATR","D","-1","ALL",,,"FALSE","T")/100 -> -0.003249097473 | L37: =RTD("cqg.rtd", ,"ContractData",A37, "OPen",, "T") -> 42.66 | M37: =RTD("cqg.rtd", ,"ContractData", A37, "HIgh",, "T") -> 42.66 | N37: =RTD("cqg.rtd", ,"ContractData",A37, "LOw",, "T") -> 41.67 | O37: =RTD("cqg.rtd", ,"ContractData",A37, "T_CVol",, "T") -> 2278802 | Q37: =IFERROR(O37/RTD("cqg.rtd",,"StudyData",A37, "MA", "InputChoice=Vol,MAType=Sim,Period=21", "MA","D","-1","all",,,,"T"),"") -> 0.3446689594 | R37: =RYT!Q58 -> https://finance.yahoo.com/quote/STX
A38: =TRIM(RYT!O59) -> S.US.MA | B38: News | C38: =RTD("cqg.rtd", ,"ContractData",A38, "LongDescription",, "T")&" ("&RIGHT(A38,LEN(A38)-5)&")" -> Mastercard Inc. (MA) | H38: =RTD("cqg.rtd", ,"ContractData",A38, "LastTradeToday",, "T") -> 115.98 | I38: =RTD("cqg.rtd", ,"ContractData",A38, "NetLastTradeToday",, "T") -> -0.82 | J38: =RTD("cqg.rtd", ,"ContractData",A38, "PerCentNetLastTrade",, "T")/100 -> -0.007020547945 | K38: =I38/RTD("cqg.rtd",,"StudyData",A38, "ATR", "MaType=Sim,Period=10", "ATR","D","-1","ALL",,,"FALSE","T")/100 -> -0.007038626609 | L38: =RTD("cqg.rtd", ,"ContractData",A38, "OPen",, "T") -> 115.93 | M38: =RTD("cqg.rtd", ,"ContractData", A38, "HIgh",, "T") -> 116.65 | N38: =RTD("cqg.rtd", ,"ContractData",A38, "LOw",, "T") -> 115.68 | O38: =RTD("cqg.rtd", ,"ContractData",A38, "T_CVol",, "T") -> 2226503 | Q38: =IFERROR(O38/RTD("cqg.rtd",,"StudyData",A38, "MA", "InputChoice=Vol,MAType=Sim,Period=21", "MA","D","-1","all",,,,"T"),"") -> 0.7133054378 | R38: =RYT!Q59 -> https://finance.yahoo.com/quote/MA
A39: =TRIM(RYT!O60) -> S.US.DXC | B39: News | C39: =RTD("cqg.rtd", ,"ContractData",A39, "LongDescription",, "T")&" ("&RIGHT(A39,LEN(A39)-5)&")" -> DXC Technology Company (DXC) | H39: =RTD("cqg.rtd", ,"ContractData",A39, "LastTradeToday",, "T") -> 78 | I39: =RTD("cqg.rtd", ,"ContractData",A39, "NetLastTradeToday",, "T") -> -0.78 | J39: =RTD("cqg.rtd", ,"ContractData",A39, "PerCentNetLastTrade",, "T")/100 -> -0.009900990099 | K39: =I39/RTD("cqg.rtd",,"StudyData",A39, "ATR", "MaType=Sim,Period=10", "ATR","D","-1","ALL",,,"FALSE","T")/100 -> -0.007344632768 | L39: =RTD("cqg.rtd", ,"ContractData",A39, "OPen",, "T") -> 78.7 | M39: =RTD("cqg.rtd", ,"ContractData", A39, "HIgh",, "T") -> 78.89 | N39: =RTD("cqg.rtd", ,"ContractData",A39, "LOw",, "T") -> 77.86 | O39: =RTD("cqg.rtd", ,"ContractData",A39, "T_CVol",, "T") -> 1051458 | Q39: =IFERROR(O39/RTD("cqg.rtd",,"StudyData",A39, "MA", "InputChoice=Vol,MAType=Sim,Period=21", "MA","D","-1","all",,,,"T"),"") -> 0.4879053462 | R39: =RYT!Q60 -> https://finance.yahoo.com/quote/DXC
A40: =TRIM(RYT!O61) -> S.US.YHOO | B40: News | C40: =RTD("cqg.rtd", ,"ContractData",A40, "LongDescription",, "T")&" ("&RIGHT(A40,LEN(A40)-5)&")" -> Yahoo! Inc (YHOO) | H40: =RTD("cqg.rtd", ,"ContractData",A40, "LastTradeToday",, "T") -> 49.14 | I40: =RTD("cqg.rtd", ,"ContractData",A40, "NetLastTradeToday",, "T") -> -0.51 | J40: =RTD("cqg.rtd", ,"ContractData",A40, "PerCentNetLastTrade",, "T")/100 -> -0.01027190332 | K40: =I40/RTD("cqg.rtd",,"StudyData",A40, "ATR", "MaType=Sim,Period=10", "ATR","D","-1","ALL",,,"FALSE","T")/100 -> -0.007522123894 | L40: =RTD("cqg.rtd", ,"ContractData",A40, "OPen",, "T") -> 48.68 | M40: =RTD("cqg.rtd", ,"ContractData", A40, "HIgh",, "T") -> 49.53 | N40: =RTD("cqg.rtd", ,"ContractData",A40, "LOw",, "T") -> 47.74 | O40: =RTD("cqg.rtd", ,"ContractData",A40, "T_CVol",, "T") -> 8180901 | Q40: =IFERROR(O40/RTD("cqg.rtd",,"StudyData",A40, "MA", "InputChoice=Vol,MAType=Sim,Period=21", "MA","D","-1","all",,,,"T"),"") -> 0.8962020274 | R40: =RYT!Q61 -> https://finance.yahoo.com/quote/YHOO
A41: =TRIM(RYT!O62) -> S.US.AKAM | B41: News | C41: =RTD("cqg.rtd", ,"ContractData",A41, "LongDescription",, "T")&" ("&RIGHT(A41,LEN(A41)-5)&")" -> Akamai Tech Inc (AKAM) | H41: =RTD("cqg.rtd", ,"ContractData",A41, "LastTradeToday",, "T") -> 46.97 | I41: =RTD("cqg.rtd", ,"ContractData",A41, "NetLastTradeToday",, "T") -> -0.53 | J41: =RTD("cqg.rtd", ,"ContractData",A41, "PerCentNetLastTrade",, "T")/100 -> -0.01115789474 | K41: =I41/RTD("cqg.rtd",,"StudyData",A41, "ATR", "MaType=Sim,Period=10", "ATR","D","-1","ALL",,,"FALSE","T")/100 -> -0.005076628352 | L41: =RTD("cqg.rtd", ,"ContractData",A41, "OPen",, "T") -> 47.5 | M41: =RTD("cqg.rtd", ,"ContractData", A41, "HIgh",, "T") -> 47.7 | N41: =RTD("cqg.rtd", ,"ContractData",A41, "LOw",, "T") -> 46.9 | O41: =RTD("cqg.rtd", ,"ContractData",A41, "T_CVol",, "T") -> 2019379 | Q41: =IFERROR(O41/RTD("cqg.rtd",,"StudyData",A41, "MA", "InputChoice=Vol,MAType=Sim,Period=21", "MA","D","-1","all",,,,"T"),"") -> 0.5898133201 | R41: =RYT!Q62 -> https://finance.yahoo.com/quote/AKAM
A42: =TRIM(RYT!O63) -> S.US.MSI | B42: News | C42: =RTD("cqg.rtd", ,"ContractData",A42, "LongDescription",, "T")&" ("&RIGHT(A42,LEN(A42)-5)&")" -> Motorola Solutions, Inc. (MSI) | H42: =RTD("cqg.rtd", ,"ContractData",A42, "LastTradeToday",, "T") -> 80.87 | I42: =RTD("cqg.rtd", ,"ContractData",A42, "NetLastTradeToday",, "T") -> -0.98 | J42: =RTD("cqg.rtd", ,"ContractData",A42, "PerCentNetLastTrade",, "T")/100 -> -0.01197312156 | K42: =I42/RTD("cqg.rtd",,"StudyData",A42, "ATR", "MaType=Sim,Period=10", "ATR","D","-1","ALL",,,"FALSE","T")/100 -> -0.005565019875 | L42: =RTD("cqg.rtd", ,"ContractData",A42, "OPen",, "T") -> 81.22 | M42: =RTD("cqg.rtd", ,"ContractData", A42, "HIgh",, "T") -> 81.7 | N42: =RTD("cqg.rtd", ,"ContractData",A42, "LOw",, "T") -> 80.68 | O42: =RTD("cqg.rtd", ,"ContractData",A42, "T_CVol",, "T") -> 396913 | Q42: =IFERROR(O42/RTD("cqg.rtd",,"StudyData",A42, "MA", "InputChoice=Vol,MAType=Sim,Period=21", "MA","D","-1","all",,,,"T"),"") -> 0.4233428592 | R42: =RYT!Q63 -> https://finance.yahoo.com/quote/MSI
A43: =TRIM(RYT!O64) -> S.US.HPQ | B43: News | C43: =RTD("cqg.rtd", ,"ContractData",A43, "LongDescription",, "T")&" ("&RIGHT(A43,LEN(A43)-5)&")" -> Hewlett-Packard Company (HPQ) | H43: =RTD("cqg.rtd", ,"ContractData",A43, "LastTradeToday",, "T") -> 18.73 | I43: =RTD("cqg.rtd", ,"ContractData",A43, "NetLastTradeToday",, "T") -> -0.23 | J43: =RTD("cqg.rtd", ,"ContractData",A43, "PerCentNetLastTrade",, "T")/100 -> -0.01213080169 | K43: =I43/RTD("cqg.rtd",,"StudyData",A43, "ATR", "MaType=Sim,Period=10", "ATR","D","-1","ALL",,,"FALSE","T")/100 -> -0.008679245283 | L43: =RTD("cqg.rtd", ,"ContractData",A43, "OPen",, "T") -> 18.87 | M43: =RTD("cqg.rtd", ,"ContractData", A43, "HIgh",, "T") -> 18.88 | N43: =RTD("cqg.rtd", ,"ContractData",A43, "LOw",, "T") -> 18.65 | O43: =RTD("cqg.rtd", ,"ContractData",A43, "T_CVol",, "T") -> 6324151 | Q43: =IFERROR(O43/RTD("cqg.rtd",,"StudyData",A43, "MA", "InputChoice=Vol,MAType=Sim,Period=21", "MA","D","-1","all",,,,"T"),"") -> 0.7277633118 | R43: =RYT!Q64 -> https://finance.yahoo.com/quote/HPQ
A44: =TRIM(RYT!O65) -> S.US.SYMC | B44: News | C44: =RTD("cqg.rtd", ,"ContractData",A44, "LongDescription",, "T")&" ("&RIGHT(A44,LEN(A44)-5)&")" -> Symantec Corp (SYMC) | H44: =RTD("cqg.rtd", ,"ContractData",A44, "LastTradeToday",, "T") -> 29.74 | I44: =RTD("cqg.rtd", ,"ContractData",A44, "NetLastTradeToday",, "T") -> -0.38 | J44: =RTD("cqg.rtd", ,"ContractData",A44, "PerCentNetLastTrade",, "T")/100 -> -0.01261620186 | K44: =I44/RTD("cqg.rtd",,"StudyData",A44, "ATR", "MaType=Sim,Period=10", "ATR","D","-1","ALL",,,"FALSE","T")/100 -> -0.004025423729 | L44: =RTD("cqg.rtd", ,"ContractData",A44, "OPen",, "T") -> 29.96 | M44: =RTD("cqg.rtd", ,"ContractData", A44, "HIgh",, "T") -> 30.05 | N44: =RTD("cqg.rtd", ,"ContractData",A44, "LOw",, "T") -> 29.25 | O44: =RTD("cqg.rtd", ,"ContractData",A44, "T_CVol",, "T") -> 3932884 | Q44: =IFERROR(O44/RTD("cqg.rtd",,"StudyData",A44, "MA", "InputChoice=Vol,MAType=Sim,Period=21", "MA","D","-1","all",,,,"T"),"") -> 0.5684335812 | R44: =RYT!Q65 -> https://finance.yahoo.com/quote/SYMC
A45: =TRIM(RYT!O66) -> S.US.ADS | B45: News | C45: =RTD("cqg.rtd", ,"ContractData",A45, "LongDescription",, "T")&" ("&RIGHT(A45,LEN(A45)-5)&")" -> Alliance Data Systems Corp (ADS) | H45: =RTD("cqg.rtd", ,"ContractData",A45, "LastTradeToday",, "T") -> 234.99 | I45: =RTD("cqg.rtd", ,"ContractData",A45, "NetLastTradeToday",, "T") -> -3.2 | J45: =RTD("cqg.rtd", ,"ContractData",A45, "PerCentNetLastTrade",, "T")/100 -> -0.01343465301 | K45: =I45/RTD("cqg.rtd",,"StudyData",A45, "ATR", "MaType=Sim,Period=10", "ATR","D","-1","ALL",,,"FALSE","T")/100 -> -0.00583515682 | L45: =RTD("cqg.rtd", ,"ContractData",A45, "OPen",, "T") -> 237.05 | M45: =RTD("cqg.rtd", ,"ContractData", A45, "HIgh",, "T") -> 238.53 | N45: =RTD("cqg.rtd", ,"ContractData",A45, "LOw",, "T") -> 232.81 | O45: =RTD("cqg.rtd", ,"ContractData",A45, "T_CVol",, "T") -> 245537 | Q45: =IFERROR(O45/RTD("cqg.rtd",,"StudyData",A45, "MA", "InputChoice=Vol,MAType=Sim,Period=21", "MA","D","-1","all",,,,"T"),"") -> 0.3351078059 | R45: =RYT!Q66 -> https://finance.yahoo.com/quote/ADS
A46: =TRIM(RYT!O67) -> S.US.FFIV | B46: News | C46: =RTD("cqg.rtd", ,"ContractData",A46, "LongDescription",, "T")&" ("&RIGHT(A46,LEN(A46)-5)&")" -> F5 Networks Inc (FFIV) | H46: =RTD("cqg.rtd", ,"ContractData",A46, "LastTradeToday",, "T") -> 126.08 | I46: =RTD("cqg.rtd", ,"ContractData",A46, "NetLastTradeToday",, "T") -> -1.79 | J46: =RTD("cqg.rtd", ,"ContractData",A46, "PerCentNetLastTrade",, "T")/100 -> -0.01399859232 | K46: =I46/RTD("cqg.rtd",,"StudyData",A46, "ATR", "MaType=Sim,Period=10", "ATR","D","-1","ALL",,,"FALSE","T")/100 -> -0.008491461101 | L46: =RTD("cqg.rtd", ,"ContractData",A46, "OPen",, "T") -> 126.89 | M46: =RTD("cqg.rtd", ,"ContractData", A46, "HIgh",, "T") -> 128.02 | N46: =RTD("cqg.rtd", ,"ContractData",A46, "LOw",, "T") -> 124.27 | O46: =RTD("cqg.rtd", ,"ContractData",A46, "T_CVol",, "T") -> 635486 | Q46: =IFERROR(O46/RTD("cqg.rtd",,"StudyData",A46, "MA", "InputChoice=Vol,MAType=Sim,Period=21", "MA","D","-1","all",,,,"T"),"") -> 0.5166544645 | R46: =RYT!Q67 -> https://finance.yahoo.com/quote/FFIV
A47: =TRIM(RYT!O68) -> S.US.SNPS | B47: News | C47: =RTD("cqg.rtd", ,"ContractData",A47, "LongDescription",, "T")&" ("&RIGHT(A47,LEN(A47)-5)&")" -> Synopsis (SNPS) | H47: =RTD("cqg.rtd", ,"ContractData",A47, "LastTradeToday",, "T") -> 71.49 | I47: =RTD("cqg.rtd", ,"ContractData",A47, "NetLastTradeToday",, "T") -> -1.9 | J47: =RTD("cqg.rtd", ,"ContractData",A47, "PerCentNetLastTrade",, "T")/100 -> -0.02588908571 | K47: =I47/RTD("cqg.rtd",,"StudyData",A47, "ATR", "MaType=Sim,Period=10", "ATR","D","-1","ALL",,,"FALSE","T")/100 -> -0.02798232695 | L47: =RTD("cqg.rtd", ,"ContractData",A47, "OPen",, "T") -> 75 | M47: =RTD("cqg.rtd", ,"ContractData", A47, "HIgh",, "T") -> 75.34 | N47: =RTD("cqg.rtd", ,"ContractData",A47, "LOw",, "T") -> 71.46 | O47: =RTD("cqg.rtd", ,"ContractData",A47, "T_CVol",, "T") -> 1538446 | Q47: =IFERROR(O47/RTD("cqg.rtd",,"StudyData",A47, "MA", "InputChoice=Vol,MAType=Sim,Period=21", "MA","D","-1","all",,,,"T"),"") -> 1.62221722 | R47: =RYT!Q68 -> https://finance.yahoo.com/quote/SNPS
A48: =TRIM(RYT!O69) -> S.US.CSCO | B48: News | C48: =RTD("cqg.rtd", ,"ContractData",A48, "LongDescription",, "T")&" ("&RIGHT(A48,LEN(A48)-5)&")" -> Cisco Systems Inc (CSCO) | H48: =RTD("cqg.rtd", ,"ContractData",A48, "LastTradeToday",, "T") -> 31.2 | I48: =RTD("cqg.rtd", ,"ContractData",A48, "NetLastTradeToday",, "T") -> -2.62 | J48: =RTD("cqg.rtd", ,"ContractData",A48, "PerCentNetLastTrade",, "T")/100 -> -0.07746895328 | K48: =I48/RTD("cqg.rtd",,"StudyData",A48, "ATR", "MaType=Sim,Period=10", "ATR","D","-1","ALL",,,"FALSE","T")/100 -> -0.05670995671 | L48: =RTD("cqg.rtd", ,"ContractData",A48, "OPen",, "T") -> 31.1 | M48: =RTD("cqg.rtd", ,"ContractData", A48, "HIgh",, "T") -> 31.51 | N48: =RTD("cqg.rtd", ,"ContractData",A48, "LOw",, "T") -> 30.37 | O48: =RTD("cqg.rtd", ,"ContractData",A48, "T_CVol",, "T") -> 47834674 | Q48: =IFERROR(O48/RTD("cqg.rtd",,"StudyData",A48, "MA", "InputChoice=Vol,MAType=Sim,Period=21", "MA","D","-1","all",,,,"T"),"") -> 2.595943993 | R48: =RYT!Q69 -> https://finance.yahoo.com/quote/CSCO
C49: CQG Inc., Copyright © 2017 | G49: Designed by Thom Hartle | J49: Standard & Poor’s® and S&P® are registered trademarks of Standard & Poor’s Financial Services LLC, and have been licensed for use by Guggenheim Investments and its affiliates. | Z49: =RYT!AB70 -> 0.5652173913 | AA49: of the stocks in the ETF are higher today

Sheet RYT (hidden)
A1: ACCENTURE PLC | B1: ACN | C1: ="S.US."&B1 -> S.US.ACN | D1: =RTD("cqg.rtd", ,"ContractData",C1, "LongDescription",, "T") -> Accenture PLC Ireland | E1: =RTD("cqg.rtd", ,"ContractData",C1, "Open",, "T") -> 120.86 | F1: =RTD("cqg.rtd", ,"ContractData",C1, "High",, "T") -> 121.03 | G1: =RTD("cqg.rtd", ,"ContractData",C1, "Low",, "T") -> 119.41 | H1: =RTD("cqg.rtd", ,"ContractData",C1, "LastTradeToday",, "T") -> 120.45 | I1: =RTD("cqg.rtd", ,"ContractData",C1, "NetLastTradeToday",, "T") -> 0.01 | J1: =RTD("cqg.rtd", ,"ContractData",C1, "PerCentNetLastTrade",, "T")/100 -> 8.302889406e-05 | K1: =RTD("cqg.rtd", ,"ContractData", C1, "T_CVol",, "T") -> 654510 | L1: 1 | M1: =RANK($J1,$J$1:J$69)+COUNTIF($J$1:J1,J1)-1 -> 38 | N1: =C1 -> S.US.ACN | O1: =VLOOKUP($L1,$M$1:$N$69,2,FALSE) -> S.US.QRVO | P1: =RTD("cqg.rtd", ,"ContractData",O1, "PerCentNetLastTrade",, "T")/100 -> 0.02922525503 | Q1: ="https://finance.yahoo.com/quote/"&RIGHT(O1,(LEN(O1)-5)) -> https://finance.yahoo.com/quote/QRVO | S1: =IF(P1>=0,P1,NA()) -> 0.02922525503 | T1: =IF(P1>=0,NA(),-1*P1) ->  | V1: =RTD("cqg.rtd", ,"ContractData",O1, "LongDescription",, "T") -> Qorvo | Y1: =IFERROR(S1,P1) -> 0.02922525503 | AA1: =IF(S1="NA()",0,1) -> 1 | AB1: =IFERROR(AA1,0) -> 1 | AD1: =IFERROR(S1,"") -> 0.02922525503 | AE1: =IFERROR(T1,"") ->  | AF1: =IF(AE1="","",Y1) -> 
A2: ACTIVISION BLIZZARD INC | B2: ATVI | C2: ="S.US."&B2 -> S.US.ATVI | D2: =RTD("cqg.rtd", ,"ContractData",C2, "LongDescription",, "T") -> Activision Blizzard Inc | E2: =RTD("cqg.rtd", ,"ContractData",C2, "Open",, "T") -> 53.9 | F2: =RTD("cqg.rtd", ,"ContractData",C2, "High",, "T") -> 55.27 | G2: =RTD("cqg.rtd", ,"ContractData",C2, "Low",, "T") -> 53.66 | H2: =RTD("cqg.rtd", ,"ContractData",C2, "LastTradeToday",, "T") -> 54.98 | I2: =RTD("cqg.rtd", ,"ContractData",C2, "NetLastTradeToday",, "T") -> 0.75 | J2: =RTD("cqg.rtd", ,"ContractData",C2, "PerCentNetLastTrade",, "T")/100 -> 0.0138299834 | K2: =RTD("cqg.rtd", ,"ContractData", C2, "T_CVol",, "T") -> 4122527 | L2: =L1+1 -> 2 | M2: =RANK($J2,$J$1:J$69)+COUNTIF($J$1:J2,J2)-1 -> 8 | N2: =C2 -> S.US.ATVI | O2: =VLOOKUP($L2,$M$1:$N$69,2,FALSE) -> S.US.SWKS | P2: =RTD("cqg.rtd", ,"ContractData",O2, "PerCentNetLastTrade",, "T")/100 -> 0.02048731974 | Q2: ="https://finance.yahoo.com/quote/"&RIGHT(O2,(LEN(O2)-5)) -> https://finance.yahoo.com/quote/SWKS | S2: =IF(P2>=0,P2,NA()) -> 0.02048731974 | T2: =IF(P2>=0,NA(),-1*P2) ->  | V2: =RTD("cqg.rtd", ,"ContractData",O2, "LongDescription",, "T") -> Skyworks Solutions Inc | Y2: =IFERROR(S2,P2) -> 0.02048731974 | AA2: =IF(S2="NA()",0,1) -> 1 | AB2: =IFERROR(AA2,0) -> 1 | AD2: =IFERROR(S2,"") -> 0.02048731974 | AE2: =IFERROR(T2,"") ->  | AF2: =IF(AE2="","",Y2) -> 
A3: ADOBE SYSTEMS, INC. | B3: ADBE | C3: S.US.ADBE | D3: =RTD("cqg.rtd", ,"ContractData",C3, "LongDescription",, "T") -> Adobe Systems Inc | E3: =RTD("cqg.rtd", ,"ContractData",C3, "Open",, "T") -> 132.77 | F3: =RTD("cqg.rtd", ,"ContractData",C3, "High",, "T") -> 134.84 | G3: =RTD("cqg.rtd", ,"ContractData",C3, "Low",, "T") -> 130.82 | H3: =RTD("cqg.rtd", ,"ContractData",C3, "LastTradeToday",, "T") -> 133.94 | I3: =RTD("cqg.rtd", ,"ContractData",C3, "NetLastTradeToday",, "T") -> -0.39 | J3: =RTD("cqg.rtd", ,"ContractData",C3, "PerCentNetLastTrade",, "T")/100 -> -0.002903297849 | K3: =RTD("cqg.rtd", ,"ContractData", C3, "T_CVol",, "T") -> 2088914 | L3: =L2+1 -> 3 | M3: =RANK($J3,$J$1:J$69)+COUNTIF($J$1:J3,J3)-1 -> 48 | N3: S.US.ADBE | O3: S.US.AMAT | P3: =RTD("cqg.rtd", ,"ContractData",O3, "PerCentNetLastTrade",, "T")/100 -> 0.01917680075 | Q3: https://finance.yahoo.com/quote/AMAT | S3: 0.01917680075 | V3: =RTD("cqg.rtd", ,"ContractData",O3, "LongDescription",, "T") -> Applied Materials Inc | Y3: 0.01917680075 | AA3: 1 | AB3: 1 | AD3: 0.01917680075
A4: ADVANCED MICRO DEVICESINC | B4: AMD | C4: S.US.AMD | D4: =RTD("cqg.rtd", ,"ContractData",C4, "LongDescription",, "T") -> Advanced Micro Devices | E4: =RTD("cqg.rtd", ,"ContractData",C4, "Open",, "T") -> 10.99 | F4: =RTD("cqg.rtd", ,"ContractData",C4, "High",, "T") -> 11.49 | G4: =RTD("cqg.rtd", ,"ContractData",C4, "Low",, "T") -> 10.81 | H4: =RTD("cqg.rtd", ,"ContractData",C4, "LastTradeToday",, "T") -> 11.22 | I4: =RTD("cqg.rtd", ,"ContractData",C4, "NetLastTradeToday",, "T") -> 0.02 | J4: =RTD("cqg.rtd", ,"ContractData",C4, "PerCentNetLastTrade",, "T")/100 -> 0.001785714286 | K4: =RTD("cqg.rtd", ,"ContractData", C4, "T_CVol",, "T") -> 59082152 | L4: 4 | M4: =RANK($J4,$J$1:J$69)+COUNTIF($J$1:J4,J4)-1 -> 32 | N4: S.US.AMD | O4: S.US.NVDA | P4: =RTD("cqg.rtd", ,"ContractData",O4, "PerCentNetLastTrade",, "T")/100 -> 0.01910429064 | Q4: https://finance.yahoo.com/quote/NVDA | S4: 0.01910429064 | V4: =RTD("cqg.rtd", ,"ContractData",O4, "LongDescription",, "T") -> NVIDIA Corp | Y4: 0.01910429064 | AA4: 1 | AB4: 1 | AD4: 0.01910429064
A5: AKAMAI TECHNOLOGIES INC | B5: AKAM | C5: S.US.AKAM | D5: =RTD("cqg.rtd", ,"ContractData",C5, "LongDescription",, "T") -> Akamai Tech Inc | E5: =RTD("cqg.rtd", ,"ContractData",C5, "Open",, "T") -> 47.5 | F5: =RTD("cqg.rtd", ,"ContractData",C5, "High",, "T") -> 47.7 | G5: =RTD("cqg.rtd", ,"ContractData",C5, "Low",, "T") -> 46.9 | H5: =RTD("cqg.rtd", ,"ContractData",C5, "LastTradeToday",, "T") -> 46.97 | I5: =RTD("cqg.rtd", ,"ContractData",C5, "NetLastTradeToday",, "T") -> -0.53 | J5: =RTD("cqg.rtd", ,"ContractData",C5, "PerCentNetLastTrade",, "T")/100 -> -0.01115789474 | K5: =RTD("cqg.rtd", ,"ContractData", C5, "T_CVol",, "T") -> 2019379 | L5: 5 | M5: =RANK($J5,$J$1:J$69)+COUNTIF($J$1:J5,J5)-1 -> 62 | N5: S.US.AKAM | O5: S.US.ADI | P5: =RTD("cqg.rtd", ,"ContractData",O5, "PerCentNetLastTrade",, "T")/100 -> 0.01861769957 | Q5: https://finance.yahoo.com/quote/ADI | S5: 0.01861769957 | V5: =RTD("cqg.rtd", ,"ContractData",O5, "LongDescription",, "T") -> Analog Devices Inc | Y5: 0.01861769957 | AA5: 1 | AB5: 1 | AD5: 0.01861769957
A6: ALLIANCE DATA SYSTEMS | B6: ADS | C6: S.US.ADS | D6: =RTD("cqg.rtd", ,"ContractData",C6, "LongDescription",, "T") -> Alliance Data Systems Corp | E6: =RTD("cqg.rtd", ,"ContractData",C6, "Open",, "T") -> 237.05 | F6: =RTD("cqg.rtd", ,"ContractData",C6, "High",, "T") -> 238.53 | G6: =RTD("cqg.rtd", ,"ContractData",C6, "Low",, "T") -> 232.81 | H6: =RTD("cqg.rtd", ,"ContractData",C6, "LastTradeToday",, "T") -> 234.99 | I6: =RTD("cqg.rtd", ,"ContractData",C6, "NetLastTradeToday",, "T") -> -3.2 | J6: =RTD("cqg.rtd", ,"ContractData",C6, "PerCentNetLastTrade",, "T")/100 -> -0.01343465301 | K6: =RTD("cqg.rtd", ,"ContractData", C6, "T_CVol",, "T") -> 245537 | L6: 6 | M6: =RANK($J6,$J$1:J$69)+COUNTIF($J$1:J6,J6)-1 -> 66 | N6: S.US.ADS | O6: S.US.AVGO | P6: =RTD("cqg.rtd", ,"ContractData",O6, "PerCentNetLastTrade",, "T")/100 -> 0.01834068691 | Q6: https://finance.yahoo.com/quote/AVGO | S6: 0.01834068691 | V6: =RTD("cqg.rtd", ,"ContractData",O6, "LongDescription",, "T") -> Broadcom Limited | Y6: 0.01834068691 | AA6: 1 | AB6: 1 | AD6: 0.01834068691 | AH6: https://finance.yahoo.com/quote/LRCX
A7: ALPHABET INC A SHARES | B7: GOOGL | C7: S.US.GOOGL | D7: =RTD("cqg.rtd", ,"ContractData",C7, "LongDescription",, "T") -> Alphabet Inc. Class A | E7: =RTD("cqg.rtd", ,"ContractData",C7, "Open",, "T") -> 943.2 | F7: =RTD("cqg.rtd", ,"ContractData",C7, "High",, "T") -> 952.53 | G7: =RTD("cqg.rtd", ,"ContractData",C7, "Low",, "T") -> 941.27 | H7: =RTD("cqg.rtd", ,"ContractData",C7, "LastTradeToday",, "T") -> 947.69 | I7: =RTD("cqg.rtd", ,"ContractData",C7, "NetLastTradeToday",, "T") -> 5.52 | J7: =RTD("cqg.rtd", ,"ContractData",C7, "PerCentNetLastTrade",, "T")/100 -> 0.005858815288 | K7: =RTD("cqg.rtd", ,"ContractData", C7, "T_CVol",, "T") -> 1042451 | L7: 7 | M7: =RANK($J7,$J$1:J$69)+COUNTIF($J$1:J7,J7)-1 -> 25 | N7: S.US.GOOGL | O7: S.US.XLNX | P7: =RTD("cqg.rtd", ,"ContractData",O7, "PerCentNetLastTrade",, "T")/100 -> 0.01590487956 | Q7: https://finance.yahoo.com/quote/XLNX | S7: 0.01590487956 | V7: =RTD("cqg.rtd", ,"ContractData",O7, "LongDescription",, "T") -> Xilinx Inc | Y7: 0.01590487956 | AA7: 1 | AB7: 1 | AD7: 0.01590487956
A8: ALPHABET INC C SHARES | B8: GOOG | C8: S.US.GOOG | D8: =RTD("cqg.rtd", ,"ContractData",C8, "LongDescription",, "T") -> Google, Inc. Class C | E8: =RTD("cqg.rtd", ,"ContractData",C8, "Open",, "T") -> 921 | F8: =RTD("cqg.rtd", ,"ContractData",C8, "High",, "T") -> 930.94 | G8: =RTD("cqg.rtd", ,"ContractData",C8, "Low",, "T") -> 918.75 | H8: =RTD("cqg.rtd", ,"ContractData",C8, "LastTradeToday",, "T") -> 926.77 | I8: =RTD("cqg.rtd", ,"ContractData",C8, "NetLastTradeToday",, "T") -> 7.15 | J8: =RTD("cqg.rtd", ,"ContractData",C8, "PerCentNetLastTrade",, "T")/100 -> 0.007774950523 | K8: =RTD("cqg.rtd", ,"ContractData", C8, "T_CVol",, "T") -> 900255 | L8: 8 | M8: =RANK($J8,$J$1:J$69)+COUNTIF($J$1:J8,J8)-1 -> 19 | N8: S.US.GOOG | O8: S.US.ATVI | P8: =RTD("cqg.rtd", ,"ContractData",O8, "PerCentNetLastTrade",, "T")/100 -> 0.0138299834 | Q8: https://finance.yahoo.com/quote/ATVI | S8: 0.0138299834 | V8: =RTD("cqg.rtd", ,"ContractData",O8, "LongDescription",, "T") -> Activision Blizzard Inc | Y8: 0.0138299834 | AA8: 1 | AB8: 1 | AD8: 0.0138299834
A9: AMPHENOL CORP | B9: APH | C9: S.US.APH | D9: =RTD("cqg.rtd", ,"ContractData",C9, "LongDescription",, "T") -> Amphenol | E9: =RTD("cqg.rtd", ,"ContractData",C9, "Open",, "T") -> 72.13 | F9: =RTD("cqg.rtd", ,"ContractData",C9, "High",, "T") -> 72.5 | G9: =RTD("cqg.rtd", ,"ContractData",C9, "Low",, "T") -> 71.37 | H9: =RTD("cqg.rtd", ,"ContractData",C9, "LastTradeToday",, "T") -> 72.24 | I9: =RTD("cqg.rtd", ,"ContractData",C9, "NetLastTradeToday",, "T") -> -0.32 | J9: =RTD("cqg.rtd", ,"ContractData",C9, "PerCentNetLastTrade",, "T")/100 -> -0.00441014333 | K9: =RTD("cqg.rtd", ,"ContractData", C9, "T_CVol",, "T") -> 328098 | L9: 9 | M9: =RANK($J9,$J$1:J$69)+COUNTIF($J$1:J9,J9)-1 -> 55 | N9: S.US.APH | O9: S.US.XRX | P9: =RTD("cqg.rtd", ,"ContractData",O9, "PerCentNetLastTrade",, "T")/100 -> 0.01308139535 | Q9: https://finance.yahoo.com/quote/XRX | S9: 0.01308139535 | V9: =RTD("cqg.rtd", ,"ContractData",O9, "LongDescription",, "T") -> Xerox Corp | Y9: 0.01308139535 | AA9: 1 | AB9: 1 | AD9: 0.01308139535
A10: ANALOG DEVICES INC | B10: ADI | C10: S.US.ADI | D10: =RTD("cqg.rtd", ,"ContractData",C10, "LongDescription",, "T") -> Analog Devices Inc | E10: =RTD("cqg.rtd", ,"ContractData",C10, "Open",, "T") -> 79.52 | F10: =RTD("cqg.rtd", ,"ContractData",C10, "High",, "T") -> 81.32 | G10: =RTD("cqg.rtd", ,"ContractData",C10, "Low",, "T") -> 79.03 | H10: =RTD("cqg.rtd", ,"ContractData",C10, "LastTradeToday",, "T") -> 79.88 | I10: =RTD("cqg.rtd", ,"ContractData",C10, "NetLastTradeToday",, "T") -> 1.46 | J10: =RTD("cqg.rtd", ,"ContractData",C10, "PerCentNetLastTrade",, "T")/100 -> 0.01861769957 | K10: =RTD("cqg.rtd", ,"ContractData", C10, "T_CVol",, "T") -> 2739669 | L10: 10 | M10: =RANK($J10,$J$1:J$69)+COUNTIF($J$1:J10,J10)-1 -> 5 | N10: S.US.ADI | O10: S.US.AAPL | P10: =RTD("cqg.rtd", ,"ContractData",O10, "PerCentNetLastTrade",, "T")/100 -> 0.01211314476 | Q10: https://finance.yahoo.com/quote/AAPL | S10: 0.01211314476 | V10: =RTD("cqg.rtd", ,"ContractData",O10, "LongDescription",, "T") -> Apple Inc | Y10: 0.01211314476 | AA10: 1 | AB10: 1 | AD10: 0.01211314476
A11: APPLE INC. | B11: AAPL | C11: S.US.AAPL | D11: =RTD("cqg.rtd", ,"ContractData",C11, "LongDescription",, "T") -> Apple Inc | E11: =RTD("cqg.rtd", ,"ContractData",C11, "Open",, "T") -> 151.27 | F11: =RTD("cqg.rtd", ,"ContractData",C11, "High",, "T") -> 153.34 | G11: =RTD("cqg.rtd", ,"ContractData",C11, "Low",, "T") -> 151.13 | H11: =RTD("cqg.rtd", ,"ContractData",C11, "LastTradeToday",, "T") -> 152.07 | I11: =RTD("cqg.rtd", ,"ContractData",C11, "NetLastTradeToday",, "T") -> 1.82 | J11: =RTD("cqg.rtd", ,"ContractData",C11, "PerCentNetLastTrade",, "T")/100 -> 0.01211314476 | K11: =RTD("cqg.rtd", ,"ContractData", C11, "T_CVol",, "T") -> 20069127 | L11: 11 | M11: =RANK($J11,$J$1:J$69)+COUNTIF($J$1:J11,J11)-1 -> 10 | N11: S.US.AAPL | O11: S.US.FB | P11: =RTD("cqg.rtd", ,"ContractData",O11, "PerCentNetLastTrade",, "T")/100 -> 0.01208146358 | Q11: https://finance.yahoo.com/quote/FB | S11: 0.01208146358 | V11: =RTD("cqg.rtd", ,"ContractData",O11, "LongDescription",, "T") -> Facebook, Inc. | Y11: 0.01208146358 | AA11: 1 | AB11: 1 | AD11: 0.01208146358
A12: APPLIED MATERIALS, INC. | B12: AMAT | C12: S.US.AMAT | D12: =RTD("cqg.rtd", ,"ContractData",C12, "LongDescription",, "T") -> Applied Materials Inc | E12: =RTD("cqg.rtd", ,"ContractData",C12, "Open",, "T") -> 43.1 | F12: =RTD("cqg.rtd", ,"ContractData",C12, "High",, "T") -> 43.73 | G12: =RTD("cqg.rtd", ,"ContractData",C12, "Low",, "T") -> 42.83 | H12: =RTD("cqg.rtd", ,"ContractData",C12, "LastTradeToday",, "T") -> 43.58 | I12: =RTD("cqg.rtd", ,"ContractData",C12, "NetLastTradeToday",, "T") -> 0.82 | J12: =RTD("cqg.rtd", ,"ContractData",C12, "PerCentNetLastTrade",, "T")/100 -> 0.01917680075 | K12: =RTD("cqg.rtd", ,"ContractData", C12, "T_CVol",, "T") -> 9296686 | L12: 12 | M12: =RANK($J12,$J$1:J$69)+COUNTIF($J$1:J12,J12)-1 -> 3 | N12: S.US.AMAT | O12: S.US.EA | P12: =RTD("cqg.rtd", ,"ContractData",O12, "PerCentNetLastTrade",, "T")/100 -> 0.01206765488 | Q12: https://finance.yahoo.com/quote/EA | S12: 0.01206765488 | V12: =RTD("cqg.rtd", ,"ContractData",O12, "LongDescription",, "T") -> Electronic Arts | Y12: 0.01206765488 | AA12: 1 | AB12: 1 | AD12: 0.01206765488
A13: AUTODESK INC | B13: ADSK | C13: S.US.ADSK | D13: =RTD("cqg.rtd", ,"ContractData",C13, "LongDescription",, "T") -> Autodesk Inc | E13: =RTD("cqg.rtd", ,"ContractData",C13, "Open",, "T") -> 94.04 | F13: =RTD("cqg.rtd", ,"ContractData",C13, "High",, "T") -> 95.7 | G13: =RTD("cqg.rtd", ,"ContractData",C13, "Low",, "T") -> 93.07 | H13: =RTD("cqg.rtd", ,"ContractData",C13, "LastTradeToday",, "T") -> 94.72 | I13: =RTD("cqg.rtd", ,"ContractData",C13, "NetLastTradeToday",, "T") -> 0.75 | J13: =RTD("cqg.rtd", ,"ContractData",C13, "PerCentNetLastTrade",, "T")/100 -> 0.007981270618 | K13: =RTD("cqg.rtd", ,"ContractData", C13, "T_CVol",, "T") -> 904255 | L13: 13 | M13: =RANK($J13,$J$1:J$69)+COUNTIF($J$1:J13,J13)-1 -> 18 | N13: S.US.ADSK | O13: S.US.GPN | P13: =RTD("cqg.rtd", ,"ContractData",O13, "PerCentNetLastTrade",, "T")/100 -> 0.01089670829 | Q13: https://finance.yahoo.com/quote/GPN | S13: 0.01089670829 | V13: =RTD("cqg.rtd", ,"ContractData",O13, "LongDescription",, "T") -> Global Payments | Y13: 0.01089670829 | AA13: 1 | AB13: 1 | AD13: 0.01089670829
A14: AUTOMATIC DATA PROC | B14: ADP | C14: S.US.ADP | D14: =RTD("cqg.rtd", ,"ContractData",C14, "LongDescription",, "T") -> Auto Data Processing Inc | E14: =RTD("cqg.rtd", ,"ContractData",C14, "Open",, "T") -> 97.15 | F14: =RTD("cqg.rtd", ,"ContractData",C14, "High",, "T") -> 98.39 | G14: =RTD("cqg.rtd", ,"ContractData",C14, "Low",, "T") -> 96.8 | H14: =RTD("cqg.rtd", ,"ContractData",C14, "LastTradeToday",, "T") -> 98.27 | I14: =RTD("cqg.rtd", ,"ContractData",C14, "NetLastTradeToday",, "T") -> 0.97 | J14: =RTD("cqg.rtd", ,"ContractData",C14, "PerCentNetLastTrade",, "T")/100 -> 0.009969167523 | K14: =RTD("cqg.rtd", ,"ContractData", C14, "T_CVol",, "T") -> 875586 | L14: 14 | M14: =RANK($J14,$J$1:J$69)+COUNTIF($J$1:J14,J14)-1 -> 14 | N14: S.US.ADP | O14: S.US.ADP | P14: =RTD("cqg.rtd", ,"ContractData",O14, "PerCentNetLastTrade",, "T")/100 -> 0.009969167523 | Q14: https://finance.yahoo.com/quote/ADP | S14: 0.009969167523 | V14: =RTD("cqg.rtd", ,"ContractData",O14, "LongDescription",, "T") -> Auto Data Processing Inc | Y14: 0.009969167523 | AA14: 1 | AB14: 1 | AD14: 0.009969167523
A15: BROADCOM, LTD. | B15: AVGO | C15: S.US.AVGO | D15: =RTD("cqg.rtd", ,"ContractData",C15, "LongDescription",, "T") -> Broadcom Limited | E15: =RTD("cqg.rtd", ,"ContractData",C15, "Open",, "T") -> 231.58 | F15: =RTD("cqg.rtd", ,"ContractData",C15, "High",, "T") -> 237.1 | G15: =RTD("cqg.rtd", ,"ContractData",C15, "Low",, "T") -> 227.68 | H15: =RTD("cqg.rtd", ,"ContractData",C15, "LastTradeToday",, "T") -> 235.42 | I15: =RTD("cqg.rtd", ,"ContractData",C15, "NetLastTradeToday",, "T") -> 4.24 | J15: =RTD("cqg.rtd", ,"ContractData",C15, "PerCentNetLastTrade",, "T")/100 -> 0.01834068691 | K15: =RTD("cqg.rtd", ,"ContractData", C15, "T_CVol",, "T") -> 1749287 | L15: 15 | M15: =RANK($J15,$J$1:J$69)+COUNTIF($J$1:J15,J15)-1 -> 6 | N15: S.US.AVGO | O15: S.US.MU | P15: =RTD("cqg.rtd", ,"ContractData",O15, "PerCentNetLastTrade",, "T")/100 -> 0.008888888889 | Q15: https://finance.yahoo.com/quote/MU | S15: 0.008888888889 | V15: =RTD("cqg.rtd", ,"ContractData",O15, "LongDescription",, "T") -> Micron Technology Inc | Y15: 0.008888888889 | AA15: 1 | AB15: 1 | AD15: 0.008888888889
A16: CA INC. | B16: CA | C16: S.US.CA | D16: =RTD("cqg.rtd", ,"ContractData",C16, "LongDescription",, "T") -> CA Inc. | E16: =RTD("cqg.rtd", ,"ContractData",C16, "Open",, "T") -> 31.26 | F16: =RTD("cqg.rtd", ,"ContractData",C16, "High",, "T") -> 31.35 | G16: =RTD("cqg.rtd", ,"ContractData",C16, "Low",, "T") -> 30.92 | H16: =RTD("cqg.rtd", ,"ContractData",C16, "LastTradeToday",, "T") -> 31.05 | I16: =RTD("cqg.rtd", ,"ContractData",C16, "NetLastTradeToday",, "T") -> -0.16 | J16: =RTD("cqg.rtd", ,"ContractData",C16, "PerCentNetLastTrade",, "T")/100 -> -0.005126561999 | K16: =RTD("cqg.rtd", ,"ContractData", C16, "T_CVol",, "T") -> 1507690 | L16: 16 | M16: =RANK($J16,$J$1:J$69)+COUNTIF($J$1:J16,J16)-1 -> 56 | N16: S.US.CA | O16: S.US.MCHP | P16: =RTD("cqg.rtd", ,"ContractData",O16, "PerCentNetLastTrade",, "T")/100 -> 0.008680112331 | Q16: https://finance.yahoo.com/quote/MCHP | S16: 0.008680112331 | V16: =RTD("cqg.rtd", ,"ContractData",O16, "LongDescription",, "T") -> Microchip Technology Inc | Y16: 0.008680112331 | AA16: 1 | AB16: 1 | AD16: 0.008680112331
A17: CISCO SYSTEMS, INC. | B17: CSCO | C17: S.US.CSCO | D17: =RTD("cqg.rtd", ,"ContractData",C17, "LongDescription",, "T") -> Cisco Systems Inc | E17: =RTD("cqg.rtd", ,"ContractData",C17, "Open",, "T") -> 31.1 | F17: =RTD("cqg.rtd", ,"ContractData",C17, "High",, "T") -> 31.51 | G17: =RTD("cqg.rtd", ,"ContractData",C17, "Low",, "T") -> 30.37 | H17: =RTD("cqg.rtd", ,"ContractData",C17, "LastTradeToday",, "T") -> 31.2 | I17: =RTD("cqg.rtd", ,"ContractData",C17, "NetLastTradeToday",, "T") -> -2.62 | J17: =RTD("cqg.rtd", ,"ContractData",C17, "PerCentNetLastTrade",, "T")/100 -> -0.07746895328 | K17: =RTD("cqg.rtd", ,"ContractData", C17, "T_CVol",, "T") -> 47834674 | L17: 17 | M17: =RANK($J17,$J$1:J$69)+COUNTIF($J$1:J17,J17)-1 -> 69 | N17: S.US.CSCO | O17: S.US.PAYX | P17: =RTD("cqg.rtd", ,"ContractData",O17, "PerCentNetLastTrade",, "T")/100 -> 0.008078679312 | Q17: https://finance.yahoo.com/quote/PAYX | S17: 0.008078679312 | V17: =RTD("cqg.rtd", ,"ContractData",O17, "LongDescription",, "T") -> Paychex Inc | Y17: 0.008078679312 | AA17: 1 | AB17: 1 | AD17: 0.008078679312
A18: CITRIX SYSTEMS INC | B18: CTXS | C18: S.US.CTXS | D18: =RTD("cqg.rtd", ,"ContractData",C18, "LongDescription",, "T") -> Citrix Systems Inc | E18: =RTD("cqg.rtd", ,"ContractData",C18, "Open",, "T") -> 82.52 | F18: =RTD("cqg.rtd", ,"ContractData",C18, "High",, "T") -> 83.04 | G18: =RTD("cqg.rtd", ,"ContractData",C18, "Low",, "T") -> 81.8 | H18: =RTD("cqg.rtd", ,"ContractData",C18, "LastTradeToday",, "T") -> 82.3 | I18: =RTD("cqg.rtd", ,"ContractData",C18, "NetLastTradeToday",, "T") -> -0.44 | J18: =RTD("cqg.rtd", ,"ContractData",C18, "PerCentNetLastTrade",, "T")/100 -> -0.005317863186 | K18: =RTD("cqg.rtd", ,"ContractData", C18, "T_CVol",, "T") -> 503770 | L18: 18 | M18: =RANK($J18,$J$1:J$69)+COUNTIF($J$1:J18,J18)-1 -> 57 | N18: S.US.CTXS | O18: S.US.ADSK | P18: =RTD("cqg.rtd", ,"ContractData",O18, "PerCentNetLastTrade",, "T")/100 -> 0.007981270618 | Q18: https://finance.yahoo.com/quote/ADSK | S18: 0.007981270618 | V18: =RTD("cqg.rtd", ,"ContractData",O18, "LongDescription",, "T") -> Autodesk Inc | Y18: 0.007981270618 | AA18: 1 | AB18: 1 | AD18: 0.007981270618
A19: COGNIZANT TECH SOLUTIONS | B19: CTSH | C19: S.US.CTSH | D19: =RTD("cqg.rtd", ,"ContractData",C19, "LongDescription",, "T") -> Cognizant Tech Solutions Corp | E19: =RTD("cqg.rtd", ,"ContractData",C19, "Open",, "T") -> 64.16 | F19: =RTD("cqg.rtd", ,"ContractData",C19, "High",, "T") -> 65.15 | G19: =RTD("cqg.rtd", ,"ContractData",C19, "Low",, "T") -> 63.96 | H19: =RTD("cqg.rtd", ,"ContractData",C19, "LastTradeToday",, "T") -> 65 | I19: =RTD("cqg.rtd", ,"ContractData",C19, "NetLastTradeToday",, "T") -> 0.5 | J19: =RTD("cqg.rtd", ,"ContractData",C19, "PerCentNetLastTrade",, "T")/100 -> 0.007751937984 | K19: =RTD("cqg.rtd", ,"ContractData", C19, "T_CVol",, "T") -> 1532197 | L19: 19 | M19: =RANK($J19,$J$1:J$69)+COUNTIF($J$1:J19,J19)-1 -> 20 | N19: S.US.CTSH | O19: S.US.GOOG | P19: =RTD("cqg.rtd", ,"ContractData",O19, "PerCentNetLastTrade",, "T")/100 -> 0.007774950523 | Q19: https://finance.yahoo.com/quote/GOOG | S19: 0.007774950523 | V19: =RTD("cqg.rtd", ,"ContractData",O19, "LongDescription",, "T") -> Google, Inc. Class C | Y19: 0.007774950523 | AA19: 1 | AB19: 1 | AD19: 0.007774950523
A20: CORNING, INC. | B20: GLW | C20: S.US.GLW | D20: =RTD("cqg.rtd", ,"ContractData",C20, "LongDescription",, "T") -> Corning Incorporated | E20: =RTD("cqg.rtd", ,"ContractData",C20, "Open",, "T") -> 28.59 | F20: =RTD("cqg.rtd", ,"ContractData",C20, "High",, "T") -> 28.77 | G20: =RTD("cqg.rtd", ,"ContractData",C20, "Low",, "T") -> 28.33 | H20: =RTD("cqg.rtd", ,"ContractData",C20, "LastTradeToday",, "T") -> 28.65 | I20: =RTD("cqg.rtd", ,"ContractData",C20, "NetLastTradeToday",, "T") -> 0.01 | J20: =RTD("cqg.rtd", ,"ContractData",C20, "PerCentNetLastTrade",, "T")/100 -> 0.0003491620112 | K20: =RTD("cqg.rtd", ,"ContractData", C20, "T_CVol",, "T") -> 2924465 | L20: 20 | M20: =RANK($J20,$J$1:J$69)+COUNTIF($J$1:J20,J20)-1 -> 36 | N20: S.US.GLW | O20: S.US.CTSH | P20: =RTD("cqg.rtd", ,"ContractData",O20, "PerCentNetLastTrade",, "T")/100 -> 0.007751937984 | Q20: https://finance.yahoo.com/quote/CTSH | S20: 0.007751937984 | V20: =RTD("cqg.rtd", ,"ContractData",O20, "LongDescription",, "T") -> Cognizant Tech Solutions Corp | Y20: 0.007751937984 | AA20: 1 | AB20: 1 | AD20: 0.007751937984
A21: CSRA INC | B21: CSRA | C21: S.US.CSRA | D21: =RTD("cqg.rtd", ,"ContractData",C21, "LongDescription",, "T") -> CSRA Inc. | E21: =RTD("cqg.rtd", ,"ContractData",C21, "Open",, "T") -> 28.61 | F21: =RTD("cqg.rtd", ,"ContractData",C21, "High",, "T") -> 28.87 | G21: =RTD("cqg.rtd", ,"ContractData",C21, "Low",, "T") -> 28.24 | H21: =RTD("cqg.rtd", ,"ContractData",C21, "LastTradeToday",, "T") -> 28.75 | I21: =RTD("cqg.rtd", ,"ContractData",C21, "NetLastTradeToday",, "T") -> -0.04 | J21: =RTD("cqg.rtd", ,"ContractData",C21, "PerCentNetLastTrade",, "T")/100 -> -0.001389371309 | K21: =RTD("cqg.rtd", ,"ContractData", C21, "T_CVol",, "T") -> 397963 | L21: 21 | M21: =RANK($J21,$J$1:J$69)+COUNTIF($J$1:J21,J21)-1 -> 44 | N21: S.US.CSRA | O21: S.US.LRCX | P21: =RTD("cqg.rtd", ,"ContractData",O21, "PerCentNetLastTrade",, "T")/100 -> 0.007605079106 | Q21: https://finance.yahoo.com/quote/LRCX | S21: 0.007605079106 | T21: =IF(P21>=0,NA(),-1*P21) ->  | V21: =RTD("cqg.rtd", ,"ContractData",O21, "LongDescription",, "T") -> LAM Research Corporation | Y21: 0.007605079106 | AA21: 1 | AB21: 1 | AD21: 0.007605079106
A22: DXC TECHNOLOGY CO | B22: DXC | C22: S.US.DXC | D22: =RTD("cqg.rtd", ,"ContractData",C22, "LongDescription",, "T") -> DXC Technology Company | E22: =RTD("cqg.rtd", ,"ContractData",C22, "Open",, "T") -> 78.7 | F22: =RTD("cqg.rtd", ,"ContractData",C22, "High",, "T") -> 78.89 | G22: =RTD("cqg.rtd", ,"ContractData",C22, "Low",, "T") -> 77.86 | H22: =RTD("cqg.rtd", ,"ContractData",C22, "LastTradeToday",, "T") -> 78 | I22: =RTD("cqg.rtd", ,"ContractData",C22, "NetLastTradeToday",, "T") -> -0.78 | J22: =RTD("cqg.rtd", ,"ContractData",C22, "PerCentNetLastTrade",, "T")/100 -> -0.009900990099 | K22: =RTD("cqg.rtd", ,"ContractData", C22, "T_CVol",, "T") -> 1051458 | L22: 22 | M22: =RANK($J22,$J$1:J$69)+COUNTIF($J$1:J22,J22)-1 -> 60 | N22: S.US.DXC | O22: S.US.QCOM | P22: =RTD("cqg.rtd", ,"ContractData",O22, "PerCentNetLastTrade",, "T")/100 -> 0.007406069364 | Q22: https://finance.yahoo.com/quote/QCOM | S22: 0.007406069364 | V22: =RTD("cqg.rtd", ,"ContractData",O22, "LongDescription",, "T") -> QUALCOMM Inc | Y22: 0.007406069364 | AA22: 1 | AB22: 1 | AD22: 0.007406069364
A23: EBAY, INC. | B23: EBAY | C23: S.US.EBAY | D23: =RTD("cqg.rtd", ,"ContractData",C23, "LongDescription",, "T") -> eBay Inc | E23: =RTD("cqg.rtd", ,"ContractData",C23, "Open",, "T") -> 33.64 | F23: =RTD("cqg.rtd", ,"ContractData",C23, "High",, "T") -> 33.88 | G23: =RTD("cqg.rtd", ,"ContractData",C23, "Low",, "T") -> 32.99 | H23: =RTD("cqg.rtd", ,"ContractData",C23, "LastTradeToday",, "T") -> 33.62 | I23: =RTD("cqg.rtd", ,"ContractData",C23, "NetLastTradeToday",, "T") -> 0.04 | J23: =RTD("cqg.rtd", ,"ContractData",C23, "PerCentNetLastTrade",, "T")/100 -> 0.001191185229 | K23: =RTD("cqg.rtd", ,"ContractData", C23, "T_CVol",, "T") -> 6522348 | L23: 23 | M23: =RANK($J23,$J$1:J$69)+COUNTIF($J$1:J23,J23)-1 -> 34 | N23: S.US.EBAY | O23: S.US.FISV | P23: =RTD("cqg.rtd", ,"ContractData",O23, "PerCentNetLastTrade",, "T")/100 -> 0.006715352976 | Q23: https://finance.yahoo.com/quote/FISV | S23: 0.006715352976 | V23: =RTD("cqg.rtd", ,"ContractData",O23, "LongDescription",, "T") -> FISERV Inc | Y23: 0.006715352976 | AA23: 1 | AB23: 1 | AD23: 0.006715352976 | AE23: =IFERROR(T23,"") -> 
A24: ELECTRONIC ARTS INC | B24: EA | C24: S.US.EA | D24: =RTD("cqg.rtd", ,"ContractData",C24, "LongDescription",, "T") -> Electronic Arts | E24: =RTD("cqg.rtd", ,"ContractData",C24, "Open",, "T") -> 104.71 | F24: =RTD("cqg.rtd", ,"ContractData",C24, "High",, "T") -> 107.62 | G24: =RTD("cqg.rtd", ,"ContractData",C24, "Low",, "T") -> 104.34 | H24: =RTD("cqg.rtd", ,"ContractData",C24, "LastTradeToday",, "T") -> 106.51 | I24: =RTD("cqg.rtd", ,"ContractData",C24, "NetLastTradeToday",, "T") -> 1.27 | J24: =RTD("cqg.rtd", ,"ContractData",C24, "PerCentNetLastTrade",, "T")/100 -> 0.01206765488 | K24: =RTD("cqg.rtd", ,"ContractData", C24, "T_CVol",, "T") -> 1750468 | L24: 24 | M24: =RANK($J24,$J$1:J$69)+COUNTIF($J$1:J24,J24)-1 -> 12 | N24: S.US.EA | O24: S.US.TXN | P24: =RTD("cqg.rtd", ,"ContractData",O24, "PerCentNetLastTrade",, "T")/100 -> 0.006609049314 | Q24: https://finance.yahoo.com/quote/TXN | S24: 0.006609049314 | V24: =RTD("cqg.rtd", ,"ContractData",O24, "LongDescription",, "T") -> Texas Instruments Inc | Y24: 0.006609049314 | AA24: 1 | AB24: 1 | AD24: 0.006609049314
A25: F5 NETWORKS, INC. | B25: FFIV | C25: S.US.FFIV | D25: =RTD("cqg.rtd", ,"ContractData",C25, "LongDescription",, "T") -> F5 Networks Inc | E25: =RTD("cqg.rtd", ,"ContractData",C25, "Open",, "T") -> 126.89 | F25: =RTD("cqg.rtd", ,"ContractData",C25, "High",, "T") -> 128.02 | G25: =RTD("cqg.rtd", ,"ContractData",C25, "Low",, "T") -> 124.27 | H25: =RTD("cqg.rtd", ,"ContractData",C25, "LastTradeToday",, "T") -> 126.08 | I25: =RTD("cqg.rtd", ,"ContractData",C25, "NetLastTradeToday",, "T") -> -1.79 | J25: =RTD("cqg.rtd", ,"ContractData",C25, "PerCentNetLastTrade",, "T")/100 -> -0.01399859232 | K25: =RTD("cqg.rtd", ,"ContractData", C25, "T_CVol",, "T") -> 635486 | L25: 25 | M25: =RANK($J25,$J$1:J$69)+COUNTIF($J$1:J25,J25)-1 -> 67 | N25: S.US.FFIV | O25: S.US.GOOGL | P25: =RTD("cqg.rtd", ,"ContractData",O25, "PerCentNetLastTrade",, "T")/100 -> 0.005858815288 | Q25: https://finance.yahoo.com/quote/GOOGL | S25: 0.005858815288 | V25: =RTD("cqg.rtd", ,"ContractData",O25, "LongDescription",, "T") -> Alphabet Inc. Class A | Y25: 0.005858815288 | AA25: 1 | AB25: 1 | AD25: =IFERROR(S25,"") -> 0.005858815288 | AE25: =IFERROR(T25,"") -> 
A26: FACEBOOK INC-A | B26: FB | C26: S.US.FB | D26: =RTD("cqg.rtd", ,"ContractData",C26, "LongDescription",, "T") -> Facebook, Inc. | E26: =RTD("cqg.rtd", ,"ContractData",C26, "Open",, "T") -> 144.72 | F26: =RTD("cqg.rtd", ,"ContractData",C26, "High",, "T") -> 147.42 | G26: =RTD("cqg.rtd", ,"ContractData",C26, "Low",, "T") -> 144.51 | H26: =RTD("cqg.rtd", ,"ContractData",C26, "LastTradeToday",, "T") -> 146.6 | I26: =RTD("cqg.rtd", ,"ContractData",C26, "NetLastTradeToday",, "T") -> 1.75 | J26: =RTD("cqg.rtd", ,"ContractData",C26, "PerCentNetLastTrade",, "T")/100 -> 0.01208146358 | K26: =RTD("cqg.rtd", ,"ContractData", C26, "T_CVol",, "T") -> 13207443 | L26: 26 | M26: =RANK($J26,$J$1:J$69)+COUNTIF($J$1:J26,J26)-1 -> 11 | N26: S.US.FB | O26: S.US.IT | P26: =RTD("cqg.rtd", ,"ContractData",O26, "PerCentNetLastTrade",, "T")/100 -> 0.004671637768 | Q26: https://finance.yahoo.com/quote/IT | S26: 0.004671637768 | V26: =RTD("cqg.rtd", ,"ContractData",O26, "LongDescription",, "T") -> Gartner Group | Y26: 0.004671637768 | AA26: 1 | AB26: 1
A27: FIDELITY NATIONAL | B27: FIS | C27: S.US.FIS | D27: =RTD("cqg.rtd", ,"ContractData",C27, "LongDescription",, "T") -> Fidelity National Info Services | E27: =RTD("cqg.rtd", ,"ContractData",C27, "Open",, "T") -> 82.85 | F27: =RTD("cqg.rtd", ,"ContractData",C27, "High",, "T") -> 83.44 | G27: =RTD("cqg.rtd", ,"ContractData",C27, "Low",, "T") -> 82.58 | H27: =RTD("cqg.rtd", ,"ContractData",C27, "LastTradeToday",, "T") -> 82.95 | I27: =RTD("cqg.rtd", ,"ContractData",C27, "NetLastTradeToday",, "T") -> 0.1 | J27: =RTD("cqg.rtd", ,"ContractData",C27, "PerCentNetLastTrade",, "T")/100 -> 0.001207000604 | K27: =RTD("cqg.rtd", ,"ContractData", C27, "T_CVol",, "T") -> 752928 | L27: 27 | M27: =RANK($J27,$J$1:J$69)+COUNTIF($J$1:J27,J27)-1 -> 33 | N27: S.US.FIS | O27: S.US.KLAC | P27: =RTD("cqg.rtd", ,"ContractData",O27, "PerCentNetLastTrade",, "T")/100 -> 0.003704445334 | Q27: https://finance.yahoo.com/quote/KLAC | S27: 0.003704445334 | V27: =RTD("cqg.rtd", ,"ContractData",O27, "LongDescription",, "T") -> KLA-Tencor | Y27: 0.003704445334 | AA27: 1 | AB27: 1
A28: FISERV INC | B28: FISV | C28: S.US.FISV | D28: =RTD("cqg.rtd", ,"ContractData",C28, "LongDescription",, "T") -> FISERV Inc | E28: =RTD("cqg.rtd", ,"ContractData",C28, "Open",, "T") -> 119.3 | F28: =RTD("cqg.rtd", ,"ContractData",C28, "High",, "T") -> 120.37 | G28: =RTD("cqg.rtd", ,"ContractData",C28, "Low",, "T") -> 118.95 | H28: =RTD("cqg.rtd", ,"ContractData",C28, "LastTradeToday",, "T") -> 119.93 | I28: =RTD("cqg.rtd", ,"ContractData",C28, "NetLastTradeToday",, "T") -> 0.8 | J28: =RTD("cqg.rtd", ,"ContractData",C28, "PerCentNetLastTrade",, "T")/100 -> 0.006715352976 | K28: =RTD("cqg.rtd", ,"ContractData", C28, "T_CVol",, "T") -> 284281 | L28: 28 | M28: =RANK($J28,$J$1:J$69)+COUNTIF($J$1:J28,J28)-1 -> 23 | N28: S.US.FISV | O28: S.US.ORCL | P28: =RTD("cqg.rtd", ,"ContractData",O28, "PerCentNetLastTrade",, "T")/100 -> 0.002939181551 | Q28: https://finance.yahoo.com/quote/ORCL | S28: 0.002939181551 | V28: =RTD("cqg.rtd", ,"ContractData",O28, "LongDescription",, "T") -> Oracle Corporation | Y28: 0.002939181551 | AA28: 1 | AB28: 1
A29: FLIR SYSTEMS INC. | B29: FLIR | C29: S.US.FLIR | D29: =RTD("cqg.rtd", ,"ContractData",C29, "LongDescription",, "T") -> FLIR Systems Inc | E29: =RTD("cqg.rtd", ,"ContractData",C29, "Open",, "T") -> 37.22 | F29: =RTD("cqg.rtd", ,"ContractData",C29, "High",, "T") -> 37.54 | G29: =RTD("cqg.rtd", ,"ContractData",C29, "Low",, "T") -> 37.06 | H29: =RTD("cqg.rtd", ,"ContractData",C29, "LastTradeToday",, "T") -> 37.33 | I29: =RTD("cqg.rtd", ,"ContractData",C29, "NetLastTradeToday",, "T") -> 0.03 | J29: =RTD("cqg.rtd", ,"ContractData",C29, "PerCentNetLastTrade",, "T")/100 -> 0.0008042895442 | K29: =RTD("cqg.rtd", ,"ContractData", C29, "T_CVol",, "T") -> 249961 | L29: 29 | M29: =RANK($J29,$J$1:J$69)+COUNTIF($J$1:J29,J29)-1 -> 35 | N29: S.US.FLIR | O29: S.US.INTC | P29: =RTD("cqg.rtd", ,"ContractData",O29, "PerCentNetLastTrade",, "T")/100 -> 0.002853881279 | Q29: https://finance.yahoo.com/quote/INTC | S29: 0.002853881279 | V29: =RTD("cqg.rtd", ,"ContractData",O29, "LongDescription",, "T") -> Intel Corporation | Y29: 0.002853881279 | AA29: 1 | AB29: 1
A30: GARTNER INC | B30: IT | C30: S.US.IT | D30: =RTD("cqg.rtd", ,"ContractData",C30, "LongDescription",, "T") -> Gartner Group | E30: =RTD("cqg.rtd", ,"ContractData",C30, "Open",, "T") -> 111.47 | F30: =RTD("cqg.rtd", ,"ContractData",C30, "High",, "T") -> 112.57 | G30: =RTD("cqg.rtd", ,"ContractData",C30, "Low",, "T") -> 110.76 | H30: =RTD("cqg.rtd", ,"ContractData",C30, "LastTradeToday",, "T") -> 111.83 | I30: =RTD("cqg.rtd", ,"ContractData",C30, "NetLastTradeToday",, "T") -> 0.52 | J30: =RTD("cqg.rtd", ,"ContractData",C30, "PerCentNetLastTrade",, "T")/100 -> 0.004671637768 | K30: =RTD("cqg.rtd", ,"ContractData", C30, "T_CVol",, "T") -> 87771 | L30: 30 | M30: =RANK($J30,$J$1:J$69)+COUNTIF($J$1:J30,J30)-1 -> 26 | N30: S.US.IT | O30: S.US.MSFT | P30: =RTD("cqg.rtd", ,"ContractData",O30, "PerCentNetLastTrade",, "T")/100 -> 0.002815649081 | Q30: https://finance.yahoo.com/quote/MSFT | S30: 0.002815649081 | V30: =RTD("cqg.rtd", ,"ContractData",O30, "LongDescription",, "T") -> Microsoft Corporation | Y30: 0.002815649081 | AA30: 1 | AB30: 1
A31: GLOBAL PAYMENTS, INC | B31: GPN | C31: S.US.GPN | D31: =RTD("cqg.rtd", ,"ContractData",C31, "LongDescription",, "T") -> Global Payments | E31: =RTD("cqg.rtd", ,"ContractData",C31, "Open",, "T") -> 88.09 | F31: =RTD("cqg.rtd", ,"ContractData",C31, "High",, "T") -> 89.15 | G31: =RTD("cqg.rtd", ,"ContractData",C31, "Low",, "T") -> 87.68 | H31: =RTD("cqg.rtd", ,"ContractData",C31, "LastTradeToday",, "T") -> 89.06 | I31: =RTD("cqg.rtd", ,"ContractData",C31, "NetLastTradeToday",, "T") -> 0.96 | J31: =RTD("cqg.rtd", ,"ContractData",C31, "PerCentNetLastTrade",, "T")/100 -> 0.01089670829 | K31: =RTD("cqg.rtd", ,"ContractData", C31, "T_CVol",, "T") -> 285606 | L31: 31 | M31: =RANK($J31,$J$1:J$69)+COUNTIF($J$1:J31,J31)-1 -> 13 | N31: S.US.GPN | O31: S.US.VRSN | P31: =RTD("cqg.rtd", ,"ContractData",O31, "PerCentNetLastTrade",, "T")/100 -> 0.00193028273 | Q31: https://finance.yahoo.com/quote/VRSN | S31: 0.00193028273 | V31: =RTD("cqg.rtd", ,"ContractData",O31, "LongDescription",, "T") -> Verisign Inc | Y31: 0.00193028273 | AA31: 1 | AB31: 1
A32: HARRIS CORPORATION | B32: HRS | C32: S.US.HRS | D32: =RTD("cqg.rtd", ,"ContractData",C32, "LongDescription",, "T") -> Harris Corporation | E32: =RTD("cqg.rtd", ,"ContractData",C32, "Open",, "T") -> 107.09 | F32: =RTD("cqg.rtd", ,"ContractData",C32, "High",, "T") -> 107.25 | G32: =RTD("cqg.rtd", ,"ContractData",C32, "Low",, "T") -> 106.18 | H32: =RTD("cqg.rtd", ,"ContractData",C32, "LastTradeToday",, "T") -> 107.02 | I32: =RTD("cqg.rtd", ,"ContractData",C32, "NetLastTradeToday",, "T") -> -0.16 | J32: =RTD("cqg.rtd", ,"ContractData",C32, "PerCentNetLastTrade",, "T")/100 -> -0.001492815824 | K32: =RTD("cqg.rtd", ,"ContractData", C32, "T_CVol",, "T") -> 342260 | L32: 32 | M32: =RANK($J32,$J$1:J$69)+COUNTIF($J$1:J32,J32)-1 -> 45 | N32: S.US.HRS | O32: S.US.AMD | P32: =RTD("cqg.rtd", ,"ContractData",O32, "PerCentNetLastTrade",, "T")/100 -> 0.001785714286 | Q32: https://finance.yahoo.com/quote/AMD | S32: 0.001785714286 | V32: =RTD("cqg.rtd", ,"ContractData",O32, "LongDescription",, "T") -> Advanced Micro Devices | Y32: 0.001785714286 | AA32: 1 | AB32: 1
A33: HEWLETT PACKARD ENTERPRIS | B33: HPE | C33: S.US.HPE | D33: =RTD("cqg.rtd", ,"ContractData",C33, "LongDescription",, "T") -> Hewlett Packard Enterprise Company | E33: =RTD("cqg.rtd", ,"ContractData",C33, "Open",, "T") -> 18.65 | F33: =RTD("cqg.rtd", ,"ContractData",C33, "High",, "T") -> 18.94 | G33: =RTD("cqg.rtd", ,"ContractData",C33, "Low",, "T") -> 18.52 | H33: =RTD("cqg.rtd", ,"ContractData",C33, "LastTradeToday",, "T") -> 18.79 | I33: =RTD("cqg.rtd", ,"ContractData",C33, "NetLastTradeToday",, "T") -> -0.01 | J33: =RTD("cqg.rtd", ,"ContractData",C33, "PerCentNetLastTrade",, "T")/100 -> -0.0005319148936 | K33: =RTD("cqg.rtd", ,"ContractData", C33, "T_CVol",, "T") -> 6996892 | L33: 33 | M33: =RANK($J33,$J$1:J$69)+COUNTIF($J$1:J33,J33)-1 -> 40 | N33: S.US.HPE | O33: S.US.FIS | P33: =RTD("cqg.rtd", ,"ContractData",O33, "PerCentNetLastTrade",, "T")/100 -> 0.001207000604 | Q33: https://finance.yahoo.com/quote/FIS | S33: 0.001207000604 | V33: =RTD("cqg.rtd", ,"ContractData",O33, "LongDescription",, "T") -> Fidelity National Info Services | Y33: 0.001207000604 | AA33: 1 | AB33: 1
A34: HP INC | B34: HPQ | C34: S.US.HPQ | D34: =RTD("cqg.rtd", ,"ContractData",C34, "LongDescription",, "T") -> Hewlett-Packard Company | E34: =RTD("cqg.rtd", ,"ContractData",C34, "Open",, "T") -> 18.87 | F34: =RTD("cqg.rtd", ,"ContractData",C34, "High",, "T") -> 18.88 | G34: =RTD("cqg.rtd", ,"ContractData",C34, "Low",, "T") -> 18.65 | H34: =RTD("cqg.rtd", ,"ContractData",C34, "LastTradeToday",, "T") -> 18.73 | I34: =RTD("cqg.rtd", ,"ContractData",C34, "NetLastTradeToday",, "T") -> -0.23 | J34: =RTD("cqg.rtd", ,"ContractData",C34, "PerCentNetLastTrade",, "T")/100 -> -0.01213080169 | K34: =RTD("cqg.rtd", ,"ContractData", C34, "T_CVol",, "T") -> 6324151 | L34: 34 | M34: =RANK($J34,$J$1:J$69)+COUNTIF($J$1:J34,J34)-1 -> 64 | N34: S.US.HPQ | O34: S.US.EBAY | P34: =RTD("cqg.rtd", ,"ContractData",O34, "PerCentNetLastTrade",, "T")/100 -> 0.001191185229 | Q34: https://finance.yahoo.com/quote/EBAY | S34: 0.001191185229 | V34: =RTD("cqg.rtd", ,"ContractData",O34, "LongDescription",, "T") -> eBay Inc | Y34: 0.001191185229 | AA34: 1 | AB34: 1
A35: INTEL CORPORATION | B35: INTC | C35: S.US.INTC | D35: =RTD("cqg.rtd", ,"ContractData",C35, "LongDescription",, "T") -> Intel Corporation | E35: =RTD("cqg.rtd", ,"ContractData",C35, "Open",, "T") -> 35.19 | F35: =RTD("cqg.rtd", ,"ContractData",C35, "High",, "T") -> 35.47 | G35: =RTD("cqg.rtd", ,"ContractData",C35, "Low",, "T") -> 35.08 | H35: =RTD("cqg.rtd", ,"ContractData",C35, "LastTradeToday",, "T") -> 35.14 | I35: =RTD("cqg.rtd", ,"ContractData",C35, "NetLastTradeToday",, "T") -> 0.1 | J35: =RTD("cqg.rtd", ,"ContractData",C35, "PerCentNetLastTrade",, "T")/100 -> 0.002853881279 | K35: =RTD("cqg.rtd", ,"ContractData", C35, "T_CVol",, "T") -> 8489605 | L35: 35 | M35: =RANK($J35,$J$1:J$69)+COUNTIF($J$1:J35,J35)-1 -> 29 | N35: S.US.INTC | O35: S.US.FLIR | P35: =RTD("cqg.rtd", ,"ContractData",O35, "PerCentNetLastTrade",, "T")/100 -> 0.0008042895442 | Q35: https://finance.yahoo.com/quote/FLIR | S35: 0.0008042895442 | V35: =RTD("cqg.rtd", ,"ContractData",O35, "LongDescription",, "T") -> FLIR Systems Inc | Y35: 0.0008042895442 | AA35: 1 | AB35: 1
A36: INTL. BUS. MACHINES CORP. | B36: IBM | C36: S.US.IBM | D36: =RTD("cqg.rtd", ,"ContractData",C36, "LongDescription",, "T") -> International Business Machines | E36: =RTD("cqg.rtd", ,"ContractData",C36, "Open",, "T") -> 150.86 | F36: =RTD("cqg.rtd", ,"ContractData",C36, "High",, "T") -> 151.23 | G36: =RTD("cqg.rtd", ,"ContractData",C36, "Low",, "T") -> 150.11 | H36: =RTD("cqg.rtd", ,"ContractData",C36, "LastTradeToday",, "T") -> 150.55 | I36: =RTD("cqg.rtd", ,"ContractData",C36, "NetLastTradeToday",, "T") -> -0.38 | J36: =RTD("cqg.rtd", ,"ContractData",C36, "PerCentNetLastTrade",, "T")/100 -> -0.002517723448 | K36: =RTD("cqg.rtd", ,"ContractData", C36, "T_CVol",, "T") -> 1345535 | L36: 36 | M36: =RANK($J36,$J$1:J$69)+COUNTIF($J$1:J36,J36)-1 -> 47 | N36: S.US.IBM | O36: S.US.GLW | P36: =RTD("cqg.rtd", ,"ContractData",O36, "PerCentNetLastTrade",, "T")/100 -> 0.0003491620112 | Q36: https://finance.yahoo.com/quote/GLW | S36: 0.0003491620112 | V36: =RTD("cqg.rtd", ,"ContractData",O36, "LongDescription",, "T") -> Corning Incorporated | Y36: 0.0003491620112 | AA36: 1 | AB36: 1
A37: INTUIT INC | B37: INTU | C37: S.US.INTU | D37: =RTD("cqg.rtd", ,"ContractData",C37, "LongDescription",, "T") -> Intuit Corp | E37: =RTD("cqg.rtd", ,"ContractData",C37, "Open",, "T") -> 125.2 | F37: =RTD("cqg.rtd", ,"ContractData",C37, "High",, "T") -> 125.83 | G37: =RTD("cqg.rtd", ,"ContractData",C37, "Low",, "T") -> 124.22 | H37: =RTD("cqg.rtd", ,"ContractData",C37, "LastTradeToday",, "T") -> 125.24 | I37: =RTD("cqg.rtd", ,"ContractData",C37, "NetLastTradeToday",, "T") -> -0.11 | J37: =RTD("cqg.rtd", ,"ContractData",C37, "PerCentNetLastTrade",, "T")/100 -> -0.0008775428799 | K37: =RTD("cqg.rtd", ,"ContractData", C37, "T_CVol",, "T") -> 758452 | L37: 37 | M37: =RANK($J37,$J$1:J$69)+COUNTIF($J$1:J37,J37)-1 -> 42 | N37: S.US.INTU | O37: S.US.PYPL | P37: =RTD("cqg.rtd", ,"ContractData",O37, "PerCentNetLastTrade",, "T")/100 -> 0.0002038735984 | Q37: https://finance.yahoo.com/quote/PYPL | S37: 0.0002038735984 | V37: =RTD("cqg.rtd", ,"ContractData",O37, "LongDescription",, "T") -> PayPal Holdings, Inc. | Y37: 0.0002038735984 | AA37: 1 | AB37: 1
A38: JUNIPER NETWORKS, INC. | B38: JNPR | C38: S.US.JNPR | D38: =RTD("cqg.rtd", ,"ContractData",C38, "LongDescription",, "T") -> Juniper Networks, Inc. | E38: =RTD("cqg.rtd", ,"ContractData",C38, "Open",, "T") -> 29.51 | F38: =RTD("cqg.rtd", ,"ContractData",C38, "High",, "T") -> 29.89 | G38: =RTD("cqg.rtd", ,"ContractData",C38, "Low",, "T") -> 29.17 | H38: =RTD("cqg.rtd", ,"ContractData",C38, "LastTradeToday",, "T") -> 29.65 | I38: =RTD("cqg.rtd", ,"ContractData",C38, "NetLastTradeToday",, "T") -> -0.11 | J38: =RTD("cqg.rtd", ,"ContractData",C38, "PerCentNetLastTrade",, "T")/100 -> -0.003696236559 | K38: =RTD("cqg.rtd", ,"ContractData", C38, "T_CVol",, "T") -> 3699892 | L38: 38 | M38: =RANK($J38,$J$1:J$69)+COUNTIF($J$1:J38,J38)-1 -> 51 | N38: S.US.JNPR | O38: S.US.ACN | P38: =RTD("cqg.rtd", ,"ContractData",O38, "PerCentNetLastTrade",, "T")/100 -> 8.302889406e-05 | Q38: https://finance.yahoo.com/quote/ACN | S38: 8.302889406e-05 | V38: =RTD("cqg.rtd", ,"ContractData",O38, "LongDescription",, "T") -> Accenture PLC Ireland | Y38: 8.302889406e-05 | AA38: 1 | AB38: 1
A39: KLA-TENCOR CORPORATION | B39: KLAC | C39: S.US.KLAC | D39: =RTD("cqg.rtd", ,"ContractData",C39, "LongDescription",, "T") -> KLA-Tencor | E39: =RTD("cqg.rtd", ,"ContractData",C39, "Open",, "T") -> 99.65 | F39: =RTD("cqg.rtd", ,"ContractData",C39, "High",, "T") -> 100.58 | G39: =RTD("cqg.rtd", ,"ContractData",C39, "Low",, "T") -> 99.16 | H39: =RTD("cqg.rtd", ,"ContractData",C39, "LastTradeToday",, "T") -> 100.25 | I39: =RTD("cqg.rtd", ,"ContractData",C39, "NetLastTradeToday",, "T") -> 0.37 | J39: =RTD("cqg.rtd", ,"ContractData",C39, "PerCentNetLastTrade",, "T")/100 -> 0.003704445334 | K39: =RTD("cqg.rtd", ,"ContractData", C39, "T_CVol",, "T") -> 765126 | L39: 39 | M39: =RANK($J39,$J$1:J$69)+COUNTIF($J$1:J39,J39)-1 -> 27 | N39: S.US.KLAC | O39: S.US.WDC | P39: =RTD("cqg.rtd", ,"ContractData",O39, "PerCentNetLastTrade",, "T")/100 -> 0 | Q39: https://finance.yahoo.com/quote/WDC | S39: 0 | V39: =RTD("cqg.rtd", ,"ContractData",O39, "LongDescription",, "T") -> Western Digital Corporation | Y39: 0 | AA39: =IF(S39="#N/A",0,1) -> 1 | AB39: 1
A40: LAM RESEARCH CORPORATION | B40: LRCX | C40: S.US.LRCX | D40: =RTD("cqg.rtd", ,"ContractData",C40, "LongDescription",, "T") -> LAM Research Corporation | E40: =RTD("cqg.rtd", ,"ContractData",C40, "Open",, "T") -> 146.68 | F40: =RTD("cqg.rtd", ,"ContractData",C40, "High",, "T") -> 148.95 | G40: =RTD("cqg.rtd", ,"ContractData",C40, "Low",, "T") -> 145.13 | H40: =RTD("cqg.rtd", ,"ContractData",C40, "LastTradeToday",, "T") -> 148.39 | I40: =RTD("cqg.rtd", ,"ContractData",C40, "NetLastTradeToday",, "T") -> 1.12 | J40: =RTD("cqg.rtd", ,"ContractData",C40, "PerCentNetLastTrade",, "T")/100 -> 0.007605079106 | K40: =RTD("cqg.rtd", ,"ContractData", C40, "T_CVol",, "T") -> 1407217 | L40: 40 | M40: =RANK($J40,$J$1:J$69)+COUNTIF($J$1:J40,J40)-1 -> 21 | N40: S.US.LRCX | O40: S.US.HPE | P40: =RTD("cqg.rtd", ,"ContractData",O40, "PerCentNetLastTrade",, "T")/100 -> -0.0005319148936 | Q40: https://finance.yahoo.com/quote/HPE | T40: 0.0005319148936 | V40: =RTD("cqg.rtd", ,"ContractData",O40, "LongDescription",, "T") -> Hewlett Packard Enterprise Company | Y40: -0.0005319148936 | AB40: 0
A41: MASTERCARD, INC. | B41: MA | C41: S.US.MA | D41: =RTD("cqg.rtd", ,"ContractData",C41, "LongDescription",, "T") -> Mastercard Inc. | E41: =RTD("cqg.rtd", ,"ContractData",C41, "Open",, "T") -> 115.93 | F41: =RTD("cqg.rtd", ,"ContractData",C41, "High",, "T") -> 116.65 | G41: =RTD("cqg.rtd", ,"ContractData",C41, "Low",, "T") -> 115.68 | H41: =RTD("cqg.rtd", ,"ContractData",C41, "LastTradeToday",, "T") -> 115.98 | I41: =RTD("cqg.rtd", ,"ContractData",C41, "NetLastTradeToday",, "T") -> -0.82 | J41: =RTD("cqg.rtd", ,"ContractData",C41, "PerCentNetLastTrade",, "T")/100 -> -0.007020547945 | K41: =RTD("cqg.rtd", ,"ContractData", C41, "T_CVol",, "T") -> 2226503 | L41: 41 | M41: =RANK($J41,$J$1:J$69)+COUNTIF($J$1:J41,J41)-1 -> 59 | N41: S.US.MA | O41: S.US.V | P41: =RTD("cqg.rtd", ,"ContractData",O41, "PerCentNetLastTrade",, "T")/100 -> -0.0005448997384 | Q41: https://finance.yahoo.com/quote/V | T41: 0.0005448997384 | V41: =RTD("cqg.rtd", ,"ContractData",O41, "LongDescription",, "T") -> Visa Inc. | Y41: -0.0005448997384 | AB41: 0
A42: MICROCHIP TECHNOLOGY INC | B42: MCHP | C42: S.US.MCHP | D42: =RTD("cqg.rtd", ,"ContractData",C42, "LongDescription",, "T") -> Microchip Technology Inc | E42: =RTD("cqg.rtd", ,"ContractData",C42, "Open",, "T") -> 78.39 | F42: =RTD("cqg.rtd", ,"ContractData",C42, "High",, "T") -> 79.56 | G42: =RTD("cqg.rtd", ,"ContractData",C42, "Low",, "T") -> 77.87 | H42: =RTD("cqg.rtd", ,"ContractData",C42, "LastTradeToday",, "T") -> 79.02 | I42: =RTD("cqg.rtd", ,"ContractData",C42, "NetLastTradeToday",, "T") -> 0.68 | J42: =RTD("cqg.rtd", ,"ContractData",C42, "PerCentNetLastTrade",, "T")/100 -> 0.008680112331 | K42: =RTD("cqg.rtd", ,"ContractData", C42, "T_CVol",, "T") -> 1332850 | L42: 42 | M42: =RANK($J42,$J$1:J$69)+COUNTIF($J$1:J42,J42)-1 -> 16 | N42: S.US.MCHP | O42: S.US.INTU | P42: =RTD("cqg.rtd", ,"ContractData",O42, "PerCentNetLastTrade",, "T")/100 -> -0.0008775428799 | Q42: https://finance.yahoo.com/quote/INTU | T42: 0.0008775428799 | V42: =RTD("cqg.rtd", ,"ContractData",O42, "LongDescription",, "T") -> Intuit Corp | Y42: -0.0008775428799 | AB42: 0
A43: MICRON TECHNOLOGY, INC. | B43: MU | C43: S.US.MU | D43: =RTD("cqg.rtd", ,"ContractData",C43, "LongDescription",, "T") -> Micron Technology Inc | E43: =RTD("cqg.rtd", ,"ContractData",C43, "Open",, "T") -> 27.15 | F43: =RTD("cqg.rtd", ,"ContractData",C43, "High",, "T") -> 27.89 | G43: =RTD("cqg.rtd", ,"ContractData",C43, "Low",, "T") -> 27.08 | H43: =RTD("cqg.rtd", ,"ContractData",C43, "LastTradeToday",, "T") -> 27.24 | I43: =RTD("cqg.rtd", ,"ContractData",C43, "NetLastTradeToday",, "T") -> 0.24 | J43: =RTD("cqg.rtd", ,"ContractData",C43, "PerCentNetLastTrade",, "T")/100 -> 0.008888888889 | K43: =RTD("cqg.rtd", ,"ContractData", C43, "T_CVol",, "T") -> 17582287 | L43: 43 | M43: =RANK($J43,$J$1:J$69)+COUNTIF($J$1:J43,J43)-1 -> 15 | N43: S.US.MU | O43: S.US.TSS | P43: =RTD("cqg.rtd", ,"ContractData",O43, "PerCentNetLastTrade",, "T")/100 -> -0.001207937877 | Q43: https://finance.yahoo.com/quote/TSS | T43: 0.001207937877 | V43: =RTD("cqg.rtd", ,"ContractData",O43, "LongDescription",, "T") -> Total Systems Services Inc | Y43: -0.001207937877 | AB43: 0
A44: MICROSOFT CORPORATION | B44: MSFT | C44: S.US.MSFT | D44: =RTD("cqg.rtd", ,"ContractData",C44, "LongDescription",, "T") -> Microsoft Corporation | E44: =RTD("cqg.rtd", ,"ContractData",C44, "Open",, "T") -> 67.4 | F44: =RTD("cqg.rtd", ,"ContractData",C44, "High",, "T") -> 68.13 | G44: =RTD("cqg.rtd", ,"ContractData",C44, "Low",, "T") -> 67.14 | H44: =RTD("cqg.rtd", ,"ContractData",C44, "LastTradeToday",, "T") -> 67.67 | I44: =RTD("cqg.rtd", ,"ContractData",C44, "NetLastTradeToday",, "T") -> 0.19 | J44: =RTD("cqg.rtd", ,"ContractData",C44, "PerCentNetLastTrade",, "T")/100 -> 0.002815649081 | K44: =RTD("cqg.rtd", ,"ContractData", C44, "T_CVol",, "T") -> 12844420 | L44: 44 | M44: =RANK($J44,$J$1:J$69)+COUNTIF($J$1:J44,J44)-1 -> 30 | N44: S.US.MSFT | O44: S.US.CSRA | P44: =RTD("cqg.rtd", ,"ContractData",O44, "PerCentNetLastTrade",, "T")/100 -> -0.001389371309 | Q44: https://finance.yahoo.com/quote/CSRA | T44: 0.001389371309 | V44: =RTD("cqg.rtd", ,"ContractData",O44, "LongDescription",, "T") -> CSRA Inc. | Y44: -0.001389371309 | AB44: 0
A45: MOTOROLA SOLUTIONS INC | B45: MSI | C45: S.US.MSI | D45: =RTD("cqg.rtd", ,"ContractData",C45, "LongDescription",, "T") -> Motorola Solutions, Inc. | E45: =RTD("cqg.rtd", ,"ContractData",C45, "Open",, "T") -> 81.22 | F45: =RTD("cqg.rtd", ,"ContractData",C45, "High",, "T") -> 81.7 | G45: =RTD("cqg.rtd", ,"ContractData",C45, "Low",, "T") -> 80.68 | H45: =RTD("cqg.rtd", ,"ContractData",C45, "LastTradeToday",, "T") -> 80.87 | I45: =RTD("cqg.rtd", ,"ContractData",C45, "NetLastTradeToday",, "T") -> -0.98 | J45: =RTD("cqg.rtd", ,"ContractData",C45, "PerCentNetLastTrade",, "T")/100 -> -0.01197312156 | K45: =RTD("cqg.rtd", ,"ContractData", C45, "T_CVol",, "T") -> 396913 | L45: 45 | M45: =RANK($J45,$J$1:J$69)+COUNTIF($J$1:J45,J45)-1 -> 63 | N45: S.US.MSI | O45: S.US.HRS | P45: =RTD("cqg.rtd", ,"ContractData",O45, "PerCentNetLastTrade",, "T")/100 -> -0.001492815824 | Q45: https://finance.yahoo.com/quote/HRS | T45: 0.001492815824 | V45: =RTD("cqg.rtd", ,"ContractData",O45, "LongDescription",, "T") -> Harris Corporation | Y45: -0.001492815824 | AB45: 0 | AD45: =IFERROR(S45,"") ->  | AE45: =IFERROR(T45,"") -> 0.001492815824 | AF45: =IF(AE45="","",Y45) -> -0.001492815824
A46: NETAPP INC | B46: NTAP | C46: S.US.NTAP | D46: =RTD("cqg.rtd", ,"ContractData",C46, "LongDescription",, "T") -> NetApp inc. | E46: =RTD("cqg.rtd", ,"ContractData",C46, "Open",, "T") -> 40.12 | F46: =RTD("cqg.rtd", ,"ContractData",C46, "High",, "T") -> 40.84 | G46: =RTD("cqg.rtd", ,"ContractData",C46, "Low",, "T") -> 39.69 | H46: =RTD("cqg.rtd", ,"ContractData",C46, "LastTradeToday",, "T") -> 40.19 | I46: =RTD("cqg.rtd", ,"ContractData",C46, "NetLastTradeToday",, "T") -> -0.15 | J46: =RTD("cqg.rtd", ,"ContractData",C46, "PerCentNetLastTrade",, "T")/100 -> -0.003718393654 | K46: =RTD("cqg.rtd", ,"ContractData", C46, "T_CVol",, "T") -> 1991329 | L46: 46 | M46: =RANK($J46,$J$1:J$69)+COUNTIF($J$1:J46,J46)-1 -> 52 | N46: S.US.NTAP | O46: S.US.CRM | P46: =RTD("cqg.rtd", ,"ContractData",O46, "PerCentNetLastTrade",, "T")/100 -> -0.002390710383 | Q46: https://finance.yahoo.com/quote/CRM | T46: 0.002390710383 | V46: =RTD("cqg.rtd", ,"ContractData",O46, "LongDescription",, "T") -> Salesforce.com Inc | Y46: -0.002390710383 | AB46: 0 | AD46: =IFERROR(S46,"") ->  | AE46: =IFERROR(T46,"") -> 0.002390710383 | AF46: =IF(AE46="","",Y46) -> -0.002390710383
A47: NVIDIA CORP | B47: NVDA | C47: S.US.NVDA | D47: =RTD("cqg.rtd", ,"ContractData",C47, "LongDescription",, "T") -> NVIDIA Corp | E47: =RTD("cqg.rtd", ,"ContractData",C47, "Open",, "T") -> 129.5 | F47: =RTD("cqg.rtd", ,"ContractData",C47, "High",, "T") -> 132.78 | G47: =RTD("cqg.rtd", ,"ContractData",C47, "Low",, "T") -> 127.05 | H47: =RTD("cqg.rtd", ,"ContractData",C47, "LastTradeToday",, "T") -> 130.16 | I47: =RTD("cqg.rtd", ,"ContractData",C47, "NetLastTradeToday",, "T") -> 2.44 | J47: =RTD("cqg.rtd", ,"ContractData",C47, "PerCentNetLastTrade",, "T")/100 -> 0.01910429064 | K47: =RTD("cqg.rtd", ,"ContractData", C47, "T_CVol",, "T") -> 18027814 | L47: 47 | M47: =RANK($J47,$J$1:J$69)+COUNTIF($J$1:J47,J47)-1 -> 4 | N47: S.US.NVDA | O47: S.US.IBM | P47: =RTD("cqg.rtd", ,"ContractData",O47, "PerCentNetLastTrade",, "T")/100 -> -0.002517723448 | Q47: https://finance.yahoo.com/quote/IBM | T47: 0.002517723448 | V47: =RTD("cqg.rtd", ,"ContractData",O47, "LongDescription",, "T") -> International Business Machines | Y47: -0.002517723448 | AB47: 0 | AE47: 0.002517723448 | AF47: -0.002517723448
A48: ORACLE CORPORATION | B48: ORCL | C48: S.US.ORCL | D48: =RTD("cqg.rtd", ,"ContractData",C48, "LongDescription",, "T") -> Oracle Corporation | E48: =RTD("cqg.rtd", ,"ContractData",C48, "Open",, "T") -> 44.06 | F48: =RTD("cqg.rtd", ,"ContractData",C48, "High",, "T") -> 44.41 | G48: =RTD("cqg.rtd", ,"ContractData",C48, "Low",, "T") -> 43.6 | H48: =RTD("cqg.rtd", ,"ContractData",C48, "LastTradeToday",, "T") -> 44.36 | I48: =RTD("cqg.rtd", ,"ContractData",C48, "NetLastTradeToday",, "T") -> 0.13 | J48: =RTD("cqg.rtd", ,"ContractData",C48, "PerCentNetLastTrade",, "T")/100 -> 0.002939181551 | K48: =RTD("cqg.rtd", ,"ContractData", C48, "T_CVol",, "T") -> 6846395 | L48: 48 | M48: =RANK($J48,$J$1:J$69)+COUNTIF($J$1:J48,J48)-1 -> 28 | N48: S.US.ORCL | O48: S.US.ADBE | P48: =RTD("cqg.rtd", ,"ContractData",O48, "PerCentNetLastTrade",, "T")/100 -> -0.002903297849 | Q48: https://finance.yahoo.com/quote/ADBE | T48: 0.002903297849 | V48: =RTD("cqg.rtd", ,"ContractData",O48, "LongDescription",, "T") -> Adobe Systems Inc | Y48: -0.002903297849 | AB48: 0 | AE48: 0.002903297849 | AF48: -0.002903297849
A49: PAYCHEX INC | B49: PAYX | C49: S.US.PAYX | D49: =RTD("cqg.rtd", ,"ContractData",C49, "LongDescription",, "T") -> Paychex Inc | E49: =RTD("cqg.rtd", ,"ContractData",C49, "Open",, "T") -> 57 | F49: =RTD("cqg.rtd", ,"ContractData",C49, "High",, "T") -> 57.68 | G49: =RTD("cqg.rtd", ,"ContractData",C49, "Low",, "T") -> 56.77 | H49: =RTD("cqg.rtd", ,"ContractData",C49, "LastTradeToday",, "T") -> 57.4 | I49: =RTD("cqg.rtd", ,"ContractData",C49, "NetLastTradeToday",, "T") -> 0.46 | J49: =RTD("cqg.rtd", ,"ContractData",C49, "PerCentNetLastTrade",, "T")/100 -> 0.008078679312 | K49: =RTD("cqg.rtd", ,"ContractData", C49, "T_CVol",, "T") -> 695408 | L49: 49 | M49: =RANK($J49,$J$1:J$69)+COUNTIF($J$1:J49,J49)-1 -> 17 | N49: S.US.PAYX | O49: S.US.RHT | P49: =RTD("cqg.rtd", ,"ContractData",O49, "PerCentNetLastTrade",, "T")/100 -> -0.003387850467 | Q49: https://finance.yahoo.com/quote/RHT | T49: 0.003387850467 | V49: =RTD("cqg.rtd", ,"ContractData",O49, "LongDescription",, "T") -> Red Hat Inc | Y49: -0.003387850467 | AB49: 0 | AE49: 0.003387850467 | AF49: -0.003387850467
A50: PAYPAL HOLDINGS INC | B50: PYPL | C50: S.US.PYPL | D50: =RTD("cqg.rtd", ,"ContractData",C50, "LongDescription",, "T") -> PayPal Holdings, Inc. | E50: =RTD("cqg.rtd", ,"ContractData",C50, "Open",, "T") -> 49.03 | F50: =RTD("cqg.rtd", ,"ContractData",C50, "High",, "T") -> 49.58 | G50: =RTD("cqg.rtd", ,"ContractData",C50, "Low",, "T") -> 48.89 | H50: =RTD("cqg.rtd", ,"ContractData",C50, "LastTradeToday",, "T") -> 49.06 | I50: =RTD("cqg.rtd", ,"ContractData",C50, "NetLastTradeToday",, "T") -> 0.01 | J50: =RTD("cqg.rtd", ,"ContractData",C50, "PerCentNetLastTrade",, "T")/100 -> 0.0002038735984 | K50: =RTD("cqg.rtd", ,"ContractData", C50, "T_CVol",, "T") -> 3894349 | L50: 50 | M50: =RANK($J50,$J$1:J$69)+COUNTIF($J$1:J50,J50)-1 -> 37 | N50: S.US.PYPL | O50: S.US.TDC | P50: =RTD("cqg.rtd", ,"ContractData",O50, "PerCentNetLastTrade",, "T")/100 -> -0.003544842255 | Q50: https://finance.yahoo.com/quote/TDC | T50: 0.003544842255 | V50: =RTD("cqg.rtd", ,"ContractData",O50, "LongDescription",, "T") -> Teradata Corporation | Y50: -0.003544842255 | AB50: 0 | AE50: 0.003544842255 | AF50: -0.003544842255
A51: QORVO INC | B51: QRVO | C51: S.US.QRVO | D51: =RTD("cqg.rtd", ,"ContractData",C51, "LongDescription",, "T") -> Qorvo | E51: =RTD("cqg.rtd", ,"ContractData",C51, "Open",, "T") -> 72.16 | F51: =RTD("cqg.rtd", ,"ContractData",C51, "High",, "T") -> 75.42 | G51: =RTD("cqg.rtd", ,"ContractData",C51, "Low",, "T") -> 71.75 | H51: =RTD("cqg.rtd", ,"ContractData",C51, "LastTradeToday",, "T") -> 74.66 | I51: =RTD("cqg.rtd", ,"ContractData",C51, "NetLastTradeToday",, "T") -> 2.12 | J51: =RTD("cqg.rtd", ,"ContractData",C51, "PerCentNetLastTrade",, "T")/100 -> 0.02922525503 | K51: =RTD("cqg.rtd", ,"ContractData", C51, "T_CVol",, "T") -> 1545499 | L51: 51 | M51: =RANK($J51,$J$1:J$69)+COUNTIF($J$1:J51,J51)-1 -> 1 | N51: S.US.QRVO | O51: S.US.JNPR | P51: =RTD("cqg.rtd", ,"ContractData",O51, "PerCentNetLastTrade",, "T")/100 -> -0.003696236559 | Q51: https://finance.yahoo.com/quote/JNPR | T51: 0.003696236559 | V51: =RTD("cqg.rtd", ,"ContractData",O51, "LongDescription",, "T") -> Juniper Networks, Inc. | Y51: -0.003696236559 | AB51: 0 | AE51: 0.003696236559 | AF51: -0.003696236559
A52: QUALCOMM INC. | B52: QCOM | C52: S.US.QCOM | D52: =RTD("cqg.rtd", ,"ContractData",C52, "LongDescription",, "T") -> QUALCOMM Inc | E52: =RTD("cqg.rtd", ,"ContractData",C52, "Open",, "T") -> 55.58 | F52: =RTD("cqg.rtd", ,"ContractData",C52, "High",, "T") -> 55.98 | G52: =RTD("cqg.rtd", ,"ContractData",C52, "Low",, "T") -> 55.02 | H52: =RTD("cqg.rtd", ,"ContractData",C52, "LastTradeToday",, "T") -> 55.77 | I52: =RTD("cqg.rtd", ,"ContractData",C52, "NetLastTradeToday",, "T") -> 0.41 | J52: =RTD("cqg.rtd", ,"ContractData",C52, "PerCentNetLastTrade",, "T")/100 -> 0.007406069364 | K52: =RTD("cqg.rtd", ,"ContractData", C52, "T_CVol",, "T") -> 6048300 | L52: 52 | M52: =RANK($J52,$J$1:J$69)+COUNTIF($J$1:J52,J52)-1 -> 22 | N52: S.US.QCOM | O52: S.US.NTAP | P52: =RTD("cqg.rtd", ,"ContractData",O52, "PerCentNetLastTrade",, "T")/100 -> -0.003718393654 | Q52: https://finance.yahoo.com/quote/NTAP | T52: 0.003718393654 | V52: =RTD("cqg.rtd", ,"ContractData",O52, "LongDescription",, "T") -> NetApp inc. | Y52: -0.003718393654 | AB52: 0 | AE52: 0.003718393654 | AF52: -0.003718393654
A53: RED HAT, INC. | B53: RHT | C53: S.US.RHT | D53: =RTD("cqg.rtd", ,"ContractData",C53, "LongDescription",, "T") -> Red Hat Inc | E53: =RTD("cqg.rtd", ,"ContractData",C53, "Open",, "T") -> 85.03 | F53: =RTD("cqg.rtd", ,"ContractData",C53, "High",, "T") -> 85.87 | G53: =RTD("cqg.rtd", ,"ContractData",C53, "Low",, "T") -> 84.16 | H53: =RTD("cqg.rtd", ,"ContractData",C53, "LastTradeToday",, "T") -> 85.31 | I53: =RTD("cqg.rtd", ,"ContractData",C53, "NetLastTradeToday",, "T") -> -0.29 | J53: =RTD("cqg.rtd", ,"ContractData",C53, "PerCentNetLastTrade",, "T")/100 -> -0.003387850467 | K53: =RTD("cqg.rtd", ,"ContractData", C53, "T_CVol",, "T") -> 715946 | L53: 53 | M53: =RANK($J53,$J$1:J$69)+COUNTIF($J$1:J53,J53)-1 -> 49 | N53: S.US.RHT | O53: S.US.TEL | P53: =RTD("cqg.rtd", ,"ContractData",O53, "PerCentNetLastTrade",, "T")/100 -> -0.003921568627 | Q53: https://finance.yahoo.com/quote/TEL | T53: 0.003921568627 | V53: =RTD("cqg.rtd", ,"ContractData",O53, "LongDescription",, "T") -> TE Connectivity Ltd. | Y53: -0.003921568627 | AB53: 0 | AE53: 0.003921568627 | AF53: -0.003921568627
A54: SALESFORCE.COM, INC. | B54: CRM | C54: S.US.CRM | D54: =RTD("cqg.rtd", ,"ContractData",C54, "LongDescription",, "T") -> Salesforce.com Inc | E54: =RTD("cqg.rtd", ,"ContractData",C54, "Open",, "T") -> 87.88 | F54: =RTD("cqg.rtd", ,"ContractData",C54, "High",, "T") -> 88.33 | G54: =RTD("cqg.rtd", ,"ContractData",C54, "Low",, "T") -> 87.17 | H54: =RTD("cqg.rtd", ,"ContractData",C54, "LastTradeToday",, "T") -> 87.63 | I54: =RTD("cqg.rtd", ,"ContractData",C54, "NetLastTradeToday",, "T") -> -0.21 | J54: =RTD("cqg.rtd", ,"ContractData",C54, "PerCentNetLastTrade",, "T")/100 -> -0.002390710383 | K54: =RTD("cqg.rtd", ,"ContractData", C54, "T_CVol",, "T") -> 3291025 | L54: 54 | M54: =RANK($J54,$J$1:J$69)+COUNTIF($J$1:J54,J54)-1 -> 46 | N54: S.US.CRM | O54: S.US.WU | P54: =RTD("cqg.rtd", ,"ContractData",O54, "PerCentNetLastTrade",, "T")/100 -> -0.004232804233 | Q54: https://finance.yahoo.com/quote/WU | T54: 0.004232804233 | V54: =RTD("cqg.rtd", ,"ContractData",O54, "LongDescription",, "T") -> The Western Union Company | Y54: -0.004232804233 | AB54: 0 | AE54: 0.004232804233 | AF54: -0.004232804233
A55: SEAGATE TECHNOLOGY | B55: STX | C55: S.US.STX | D55: =RTD("cqg.rtd", ,"ContractData",C55, "LongDescription",, "T") -> Seagate Technology | E55: =RTD("cqg.rtd", ,"ContractData",C55, "Open",, "T") -> 42.66 | F55: =RTD("cqg.rtd", ,"ContractData",C55, "High",, "T") -> 42.66 | G55: =RTD("cqg.rtd", ,"ContractData",C55, "Low",, "T") -> 41.67 | H55: =RTD("cqg.rtd", ,"ContractData",C55, "LastTradeToday",, "T") -> 41.89 | I55: =RTD("cqg.rtd", ,"ContractData",C55, "NetLastTradeToday",, "T") -> -0.27 | J55: =RTD("cqg.rtd", ,"ContractData",C55, "PerCentNetLastTrade",, "T")/100 -> -0.006404174573 | K55: =RTD("cqg.rtd", ,"ContractData", C55, "T_CVol",, "T") -> 2278802 | L55: 55 | M55: =RANK($J55,$J$1:J$69)+COUNTIF($J$1:J55,J55)-1 -> 58 | N55: S.US.STX | O55: S.US.APH | P55: =RTD("cqg.rtd", ,"ContractData",O55, "PerCentNetLastTrade",, "T")/100 -> -0.00441014333 | Q55: https://finance.yahoo.com/quote/APH | T55: 0.00441014333 | V55: =RTD("cqg.rtd", ,"ContractData",O55, "LongDescription",, "T") -> Amphenol | Y55: -0.00441014333 | AB55: 0 | AE55: 0.00441014333 | AF55: -0.00441014333
A56: SKYWORKS SOLUTIONS, INC. | B56: SWKS | C56: S.US.SWKS | D56: =RTD("cqg.rtd", ,"ContractData",C56, "LongDescription",, "T") -> Skyworks Solutions Inc | E56: =RTD("cqg.rtd", ,"ContractData",C56, "Open",, "T") -> 100.63 | F56: =RTD("cqg.rtd", ,"ContractData",C56, "High",, "T") -> 103.04 | G56: =RTD("cqg.rtd", ,"ContractData",C56, "Low",, "T") -> 100.22 | H56: =RTD("cqg.rtd", ,"ContractData",C56, "LastTradeToday",, "T") -> 102.61 | I56: =RTD("cqg.rtd", ,"ContractData",C56, "NetLastTradeToday",, "T") -> 2.06 | J56: =RTD("cqg.rtd", ,"ContractData",C56, "PerCentNetLastTrade",, "T")/100 -> 0.02048731974 | K56: =RTD("cqg.rtd", ,"ContractData", C56, "T_CVol",, "T") -> 953238 | L56: 56 | M56: =RANK($J56,$J$1:J$69)+COUNTIF($J$1:J56,J56)-1 -> 2 | N56: S.US.SWKS | O56: S.US.CA | P56: =RTD("cqg.rtd", ,"ContractData",O56, "PerCentNetLastTrade",, "T")/100 -> -0.005126561999 | Q56: https://finance.yahoo.com/quote/CA | T56: 0.005126561999 | V56: =RTD("cqg.rtd", ,"ContractData",O56, "LongDescription",, "T") -> CA Inc. | Y56: -0.005126561999 | AB56: 0 | AE56: 0.005126561999 | AF56: -0.005126561999
A57: SYMANTEC CORP | B57: SYMC | C57: S.US.SYMC | D57: =RTD("cqg.rtd", ,"ContractData",C57, "LongDescription",, "T") -> Symantec Corp | E57: =RTD("cqg.rtd", ,"ContractData",C57, "Open",, "T") -> 29.96 | F57: =RTD("cqg.rtd", ,"ContractData",C57, "High",, "T") -> 30.05 | G57: =RTD("cqg.rtd", ,"ContractData",C57, "Low",, "T") -> 29.25 | H57: =RTD("cqg.rtd", ,"ContractData",C57, "LastTradeToday",, "T") -> 29.74 | I57: =RTD("cqg.rtd", ,"ContractData",C57, "NetLastTradeToday",, "T") -> -0.38 | J57: =RTD("cqg.rtd", ,"ContractData",C57, "PerCentNetLastTrade",, "T")/100 -> -0.01261620186 | K57: =RTD("cqg.rtd", ,"ContractData", C57, "T_CVol",, "T") -> 3932884 | L57: 57 | M57: =RANK($J57,$J$1:J$69)+COUNTIF($J$1:J57,J57)-1 -> 65 | N57: S.US.SYMC | O57: S.US.CTXS | P57: =RTD("cqg.rtd", ,"ContractData",O57, "PerCentNetLastTrade",, "T")/100 -> -0.005317863186 | Q57: https://finance.yahoo.com/quote/CTXS | T57: 0.005317863186 | V57: =RTD("cqg.rtd", ,"ContractData",O57, "LongDescription",, "T") -> Citrix Systems Inc | Y57: -0.005317863186 | AB57: 0 | AE57: 0.005317863186 | AF57: -0.005317863186
A58: SYNOPSYS INC | B58: SNPS | C58: S.US.SNPS | D58: =RTD("cqg.rtd", ,"ContractData",C58, "LongDescription",, "T") -> Synopsis | E58: =RTD("cqg.rtd", ,"ContractData",C58, "Open",, "T") -> 75 | F58: =RTD("cqg.rtd", ,"ContractData",C58, "High",, "T") -> 75.34 | G58: =RTD("cqg.rtd", ,"ContractData",C58, "Low",, "T") -> 71.46 | H58: =RTD("cqg.rtd", ,"ContractData",C58, "LastTradeToday",, "T") -> 71.49 | I58: =RTD("cqg.rtd", ,"ContractData",C58, "NetLastTradeToday",, "T") -> -1.9 | J58: =RTD("cqg.rtd", ,"ContractData",C58, "PerCentNetLastTrade",, "T")/100 -> -0.02588908571 | K58: =RTD("cqg.rtd", ,"ContractData", C58, "T_CVol",, "T") -> 1538446 | L58: 58 | M58: =RANK($J58,$J$1:J$69)+COUNTIF($J$1:J58,J58)-1 -> 68 | N58: S.US.SNPS | O58: S.US.STX | P58: =RTD("cqg.rtd", ,"ContractData",O58, "PerCentNetLastTrade",, "T")/100 -> -0.006404174573 | Q58: https://finance.yahoo.com/quote/STX | T58: 0.006404174573 | V58: =RTD("cqg.rtd", ,"ContractData",O58, "LongDescription",, "T") -> Seagate Technology | Y58: -0.006404174573 | AB58: 0 | AE58: 0.006404174573 | AF58: -0.006404174573
A59: TE CONNECTIVITY LTD | B59: TEL | C59: S.US.TEL | D59: =RTD("cqg.rtd", ,"ContractData",C59, "LongDescription",, "T") -> TE Connectivity Ltd. | E59: =RTD("cqg.rtd", ,"ContractData",C59, "Open",, "T") -> 73.59 | F59: =RTD("cqg.rtd", ,"ContractData",C59, "High",, "T") -> 73.81 | G59: =RTD("cqg.rtd", ,"ContractData",C59, "Low",, "T") -> 73.01 | H59: =RTD("cqg.rtd", ,"ContractData",C59, "LastTradeToday",, "T") -> 73.66 | I59: =RTD("cqg.rtd", ,"ContractData",C59, "NetLastTradeToday",, "T") -> -0.29 | J59: =RTD("cqg.rtd", ,"ContractData",C59, "PerCentNetLastTrade",, "T")/100 -> -0.003921568627 | K59: =RTD("cqg.rtd", ,"ContractData", C59, "T_CVol",, "T") -> 470188 | L59: 59 | M59: =RANK($J59,$J$1:J$69)+COUNTIF($J$1:J59,J59)-1 -> 53 | N59: S.US.TEL | O59: S.US.MA | P59: =RTD("cqg.rtd", ,"ContractData",O59, "PerCentNetLastTrade",, "T")/100 -> -0.007020547945 | Q59: https://finance.yahoo.com/quote/MA | T59: 0.007020547945 | V59: =RTD("cqg.rtd", ,"ContractData",O59, "LongDescription",, "T") -> Mastercard Inc. | Y59: -0.007020547945 | AB59: 0 | AE59: 0.007020547945 | AF59: -0.007020547945
A60: TERADATA CORP | B60: TDC | C60: S.US.TDC | D60: =RTD("cqg.rtd", ,"ContractData",C60, "LongDescription",, "T") -> Teradata Corporation | E60: =RTD("cqg.rtd", ,"ContractData",C60, "Open",, "T") -> 28.23 | F60: =RTD("cqg.rtd", ,"ContractData",C60, "High",, "T") -> 28.35 | G60: =RTD("cqg.rtd", ,"ContractData",C60, "Low",, "T") -> 27.97 | H60: =RTD("cqg.rtd", ,"ContractData",C60, "LastTradeToday",, "T") -> 28.11 | I60: =RTD("cqg.rtd", ,"ContractData",C60, "NetLastTradeToday",, "T") -> -0.1 | J60: =RTD("cqg.rtd", ,"ContractData",C60, "PerCentNetLastTrade",, "T")/100 -> -0.003544842255 | K60: =RTD("cqg.rtd", ,"ContractData", C60, "T_CVol",, "T") -> 459714 | L60: 60 | M60: =RANK($J60,$J$1:J$69)+COUNTIF($J$1:J60,J60)-1 -> 50 | N60: S.US.TDC | O60: S.US.DXC | P60: =RTD("cqg.rtd", ,"ContractData",O60, "PerCentNetLastTrade",, "T")/100 -> -0.009900990099 | Q60: https://finance.yahoo.com/quote/DXC | T60: 0.009900990099 | V60: =RTD("cqg.rtd", ,"ContractData",O60, "LongDescription",, "T") -> DXC Technology Company | Y60: -0.009900990099 | AB60: 0 | AE60: 0.009900990099 | AF60: -0.009900990099
A61: TEXAS INSTRUMENTS, INC. | B61: TXN | C61: S.US.TXN | D61: =RTD("cqg.rtd", ,"ContractData",C61, "LongDescription",, "T") -> Texas Instruments Inc | E61: =RTD("cqg.rtd", ,"ContractData",C61, "Open",, "T") -> 78.92 | F61: =RTD("cqg.rtd", ,"ContractData",C61, "High",, "T") -> 79.68 | G61: =RTD("cqg.rtd", ,"ContractData",C61, "Low",, "T") -> 78.42 | H61: =RTD("cqg.rtd", ,"ContractData",C61, "LastTradeToday",, "T") -> 79.2 | I61: =RTD("cqg.rtd", ,"ContractData",C61, "NetLastTradeToday",, "T") -> 0.52 | J61: =RTD("cqg.rtd", ,"ContractData",C61, "PerCentNetLastTrade",, "T")/100 -> 0.006609049314 | K61: =RTD("cqg.rtd", ,"ContractData", C61, "T_CVol",, "T") -> 2253985 | L61: 61 | M61: =RANK($J61,$J$1:J$69)+COUNTIF($J$1:J61,J61)-1 -> 24 | N61: S.US.TXN | O61: S.US.YHOO | P61: =RTD("cqg.rtd", ,"ContractData",O61, "PerCentNetLastTrade",, "T")/100 -> -0.01027190332 | Q61: https://finance.yahoo.com/quote/YHOO | T61: 0.01027190332 | V61: =RTD("cqg.rtd", ,"ContractData",O61, "LongDescription",, "T") -> Yahoo! Inc | Y61: -0.01027190332 | AB61: 0 | AE61: 0.01027190332 | AF61: -0.01027190332
A62: TOTAL SYSTEM SERVICES INC | B62: TSS | C62: S.US.TSS | D62: =RTD("cqg.rtd", ,"ContractData",C62, "LongDescription",, "T") -> Total Systems Services Inc | E62: =RTD("cqg.rtd", ,"ContractData",C62, "Open",, "T") -> 57.86 | F62: =RTD("cqg.rtd", ,"ContractData",C62, "High",, "T") -> 58.31 | G62: =RTD("cqg.rtd", ,"ContractData",C62, "Low",, "T") -> 57.58 | H62: =RTD("cqg.rtd", ,"ContractData",C62, "LastTradeToday",, "T") -> 57.88 | I62: =RTD("cqg.rtd", ,"ContractData",C62, "NetLastTradeToday",, "T") -> -0.07 | J62: =RTD("cqg.rtd", ,"ContractData",C62, "PerCentNetLastTrade",, "T")/100 -> -0.001207937877 | K62: =RTD("cqg.rtd", ,"ContractData", C62, "T_CVol",, "T") -> 173482 | L62: 62 | M62: =RANK($J62,$J$1:J$69)+COUNTIF($J$1:J62,J62)-1 -> 43 | N62: S.US.TSS | O62: S.US.AKAM | P62: =RTD("cqg.rtd", ,"ContractData",O62, "PerCentNetLastTrade",, "T")/100 -> -0.01115789474 | Q62: https://finance.yahoo.com/quote/AKAM | T62: 0.01115789474 | V62: =RTD("cqg.rtd", ,"ContractData",O62, "LongDescription",, "T") -> Akamai Tech Inc | Y62: -0.01115789474 | AB62: 0 | AE62: 0.01115789474 | AF62: -0.01115789474
A63: VERISIGN, INC. | B63: VRSN | C63: S.US.VRSN | D63: =RTD("cqg.rtd", ,"ContractData",C63, "LongDescription",, "T") -> Verisign Inc | E63: =RTD("cqg.rtd", ,"ContractData",C63, "Open",, "T") -> 88.16 | F63: =RTD("cqg.rtd", ,"ContractData",C63, "High",, "T") -> 88.7 | G63: =RTD("cqg.rtd", ,"ContractData",C63, "Low",, "T") -> 87.54 | H63: =RTD("cqg.rtd", ,"ContractData",C63, "LastTradeToday",, "T") -> 88.24 | I63: =RTD("cqg.rtd", ,"ContractData",C63, "NetLastTradeToday",, "T") -> 0.17 | J63: =RTD("cqg.rtd", ,"ContractData",C63, "PerCentNetLastTrade",, "T")/100 -> 0.00193028273 | K63: =RTD("cqg.rtd", ,"ContractData", C63, "T_CVol",, "T") -> 497866 | L63: 63 | M63: =RANK($J63,$J$1:J$69)+COUNTIF($J$1:J63,J63)-1 -> 31 | N63: S.US.VRSN | O63: S.US.MSI | P63: =RTD("cqg.rtd", ,"ContractData",O63, "PerCentNetLastTrade",, "T")/100 -> -0.01197312156 | Q63: https://finance.yahoo.com/quote/MSI | T63: 0.01197312156 | V63: =RTD("cqg.rtd", ,"ContractData",O63, "LongDescription",, "T") -> Motorola Solutions, Inc. | Y63: -0.01197312156 | AB63: 0 | AE63: 0.01197312156 | AF63: -0.01197312156
A64: VISA INC. | B64: V | C64: S.US.V | D64: =RTD("cqg.rtd", ,"ContractData",C64, "LongDescription",, "T") -> Visa Inc. | E64: =RTD("cqg.rtd", ,"ContractData",C64, "Open",, "T") -> 91.36 | F64: =RTD("cqg.rtd", ,"ContractData",C64, "High",, "T") -> 92.48 | G64: =RTD("cqg.rtd", ,"ContractData",C64, "Low",, "T") -> 91.36 | H64: =RTD("cqg.rtd", ,"ContractData",C64, "LastTradeToday",, "T") -> 91.71 | I64: =RTD("cqg.rtd", ,"ContractData",C64, "NetLastTradeToday",, "T") -> -0.05 | J64: =RTD("cqg.rtd", ,"ContractData",C64, "PerCentNetLastTrade",, "T")/100 -> -0.0005448997384 | K64: =RTD("cqg.rtd", ,"ContractData", C64, "T_CVol",, "T") -> 3336358 | L64: 64 | M64: =RANK($J64,$J$1:J$69)+COUNTIF($J$1:J64,J64)-1 -> 41 | N64: S.US.V | O64: S.US.HPQ | P64: =RTD("cqg.rtd", ,"ContractData",O64, "PerCentNetLastTrade",, "T")/100 -> -0.01213080169 | Q64: https://finance.yahoo.com/quote/HPQ | T64: 0.01213080169 | V64: =RTD("cqg.rtd", ,"ContractData",O64, "LongDescription",, "T") -> Hewlett-Packard Company | Y64: -0.01213080169 | AB64: 0 | AE64: 0.01213080169 | AF64: -0.01213080169
A65: WESTERN DIGITAL CORP | B65: WDC | C65: S.US.WDC | D65: =RTD("cqg.rtd", ,"ContractData",C65, "LongDescription",, "T") -> Western Digital Corporation | E65: =RTD("cqg.rtd", ,"ContractData",C65, "Open",, "T") -> 85.73 | F65: =RTD("cqg.rtd", ,"ContractData",C65, "High",, "T") -> 86.51 | G65: =RTD("cqg.rtd", ,"ContractData",C65, "Low",, "T") -> 84.13 | H65: =RTD("cqg.rtd", ,"ContractData",C65, "LastTradeToday",, "T") -> 85.22 | I65: =RTD("cqg.rtd", ,"ContractData",C65, "NetLastTradeToday",, "T") -> 0 | J65: =RTD("cqg.rtd", ,"ContractData",C65, "PerCentNetLastTrade",, "T")/100 -> 0 | K65: =RTD("cqg.rtd", ,"ContractData", C65, "T_CVol",, "T") -> 2065334 | L65: 65 | M65: =RANK($J65,$J$1:J$69)+COUNTIF($J$1:J65,J65)-1 -> 39 | N65: S.US.WDC | O65: S.US.SYMC | P65: =RTD("cqg.rtd", ,"ContractData",O65, "PerCentNetLastTrade",, "T")/100 -> -0.01261620186 | Q65: https://finance.yahoo.com/quote/SYMC | T65: 0.01261620186 | V65: =RTD("cqg.rtd", ,"ContractData",O65, "LongDescription",, "T") -> Symantec Corp | Y65: -0.01261620186 | AB65: 0 | AE65: 0.01261620186 | AF65: -0.01261620186
A66: WESTERN UNION CO | B66: WU | C66: ="S.US."&B66 -> S.US.WU | D66: =RTD("cqg.rtd", ,"ContractData",C66, "LongDescription",, "T") -> The Western Union Company | E66: =RTD("cqg.rtd", ,"ContractData",C66, "Open",, "T") -> 18.82 | F66: =RTD("cqg.rtd", ,"ContractData",C66, "High",, "T") -> 18.93 | G66: =RTD("cqg.rtd", ,"ContractData",C66, "Low",, "T") -> 18.79 | H66: =RTD("cqg.rtd", ,"ContractData",C66, "LastTradeToday",, "T") -> 18.82 | I66: =RTD("cqg.rtd", ,"ContractData",C66, "NetLastTradeToday",, "T") -> -0.08 | J66: =RTD("cqg.rtd", ,"ContractData",C66, "PerCentNetLastTrade",, "T")/100 -> -0.004232804233 | K66: =RTD("cqg.rtd", ,"ContractData", C66, "T_CVol",, "T") -> 1291364 | L66: 66 | M66: =RANK($J66,$J$1:J$69)+COUNTIF($J$1:J66,J66)-1 -> 54 | N66: =C66 -> S.US.WU | O66: =VLOOKUP($L66,$M$1:$N$69,2,FALSE) -> S.US.ADS | P66: =RTD("cqg.rtd", ,"ContractData",O66, "PerCentNetLastTrade",, "T")/100 -> -0.01343465301 | Q66: ="https://finance.yahoo.com/quote/"&RIGHT(O66,(LEN(O66)-5)) -> https://finance.yahoo.com/quote/ADS | S66: =IF(P66>=0,P66,NA()) ->  | T66: =IF(P66>=0,NA(),-1*P66) -> 0.01343465301 | V66: =RTD("cqg.rtd", ,"ContractData",O66, "LongDescription",, "T") -> Alliance Data Systems Corp | Y66: =IFERROR(S66,P66) -> -0.01343465301 | AA66: =IF(S66="NA()",0,1) ->  | AB66: =IFERROR(AA66,0) -> 0 | AE66: 0.01343465301 | AF66: -0.01343465301
A67: XEROX CORP | B67: XRX | C67: S.US.XRX | D67: =RTD("cqg.rtd", ,"ContractData",C67, "LongDescription",, "T") -> Xerox Corp | E67: =RTD("cqg.rtd", ,"ContractData",C67, "Open",, "T") -> 6.91 | F67: =RTD("cqg.rtd", ,"ContractData",C67, "High",, "T") -> 7 | G67: =RTD("cqg.rtd", ,"ContractData",C67, "Low",, "T") -> 6.87 | H67: =RTD("cqg.rtd", ,"ContractData",C67, "LastTradeToday",, "T") -> 6.97 | I67: =RTD("cqg.rtd", ,"ContractData",C67, "NetLastTradeToday",, "T") -> 0.09 | J67: =RTD("cqg.rtd", ,"ContractData",C67, "PerCentNetLastTrade",, "T")/100 -> 0.01308139535 | K67: =RTD("cqg.rtd", ,"ContractData", C67, "T_CVol",, "T") -> 4330195 | L67: =L66+1 -> 67 | M67: =RANK($J67,$J$1:J$69)+COUNTIF($J$1:J67,J67)-1 -> 9 | N67: S.US.XRX | O67: S.US.FFIV | P67: =RTD("cqg.rtd", ,"ContractData",O67, "PerCentNetLastTrade",, "T")/100 -> -0.01399859232 | Q67: https://finance.yahoo.com/quote/FFIV | T67: 0.01399859232 | V67: =RTD("cqg.rtd", ,"ContractData",O67, "LongDescription",, "T") -> F5 Networks Inc | Y67: -0.01399859232 | AB67: 0 | AE67: 0.01399859232 | AF67: -0.01399859232
A68: XILINX INC | B68: XLNX | C68: S.US.XLNX | D68: =RTD("cqg.rtd", ,"ContractData",C68, "LongDescription",, "T") -> Xilinx Inc | E68: =RTD("cqg.rtd", ,"ContractData",C68, "Open",, "T") -> 64.55 | F68: =RTD("cqg.rtd", ,"ContractData",C68, "High",, "T") -> 65.8 | G68: =RTD("cqg.rtd", ,"ContractData",C68, "Low",, "T") -> 64.29 | H68: =RTD("cqg.rtd", ,"ContractData",C68, "LastTradeToday",, "T") -> 65.79 | I68: =RTD("cqg.rtd", ,"ContractData",C68, "NetLastTradeToday",, "T") -> 1.03 | J68: =RTD("cqg.rtd", ,"ContractData",C68, "PerCentNetLastTrade",, "T")/100 -> 0.01590487956 | K68: =RTD("cqg.rtd", ,"ContractData", C68, "T_CVol",, "T") -> 2465593 | L68: 68 | M68: =RANK($J68,$J$1:J$69)+COUNTIF($J$1:J68,J68)-1 -> 7 | N68: S.US.XLNX | O68: S.US.SNPS | P68: =RTD("cqg.rtd", ,"ContractData",O68, "PerCentNetLastTrade",, "T")/100 -> -0.02588908571 | Q68: https://finance.yahoo.com/quote/SNPS | T68: 0.02588908571 | V68: =RTD("cqg.rtd", ,"ContractData",O68, "LongDescription",, "T") -> Synopsis | Y68: -0.02588908571 | AB68: 0 | AE68: 0.02588908571 | AF68: -0.02588908571
A69: YAHOO, INC. | B69: YHOO | C69: S.US.YHOO | D69: =RTD("cqg.rtd", ,"ContractData",C69, "LongDescription",, "T") -> Yahoo! Inc | E69: =RTD("cqg.rtd", ,"ContractData",C69, "Open",, "T") -> 48.68 | F69: =RTD("cqg.rtd", ,"ContractData",C69, "High",, "T") -> 49.53 | G69: =RTD("cqg.rtd", ,"ContractData",C69, "Low",, "T") -> 47.74 | H69: =RTD("cqg.rtd", ,"ContractData",C69, "LastTradeToday",, "T") -> 49.14 | I69: =RTD("cqg.rtd", ,"ContractData",C69, "NetLastTradeToday",, "T") -> -0.51 | J69: =RTD("cqg.rtd", ,"ContractData",C69, "PerCentNetLastTrade",, "T")/100 -> -0.01027190332 | K69: =RTD("cqg.rtd", ,"ContractData", C69, "T_CVol",, "T") -> 8180901 | L69: 69 | M69: =RANK($J69,$J$1:J$69)+COUNTIF($J$1:J69,J69)-1 -> 61 | N69: S.US.YHOO | O69: S.US.CSCO | P69: =RTD("cqg.rtd", ,"ContractData",O69, "PerCentNetLastTrade",, "T")/100 -> -0.07746895328 | Q69: https://finance.yahoo.com/quote/CSCO | T69: 0.07746895328 | V69: =RTD("cqg.rtd", ,"ContractData",O69, "LongDescription",, "T") -> Cisco Systems Inc | Y69: -0.07746895328 | AB69: 0 | AE69: 0.07746895328 | AF69: -0.07746895328
AB70: =SUM(AB1:AB69)/69 -> 0.5652173913
A71: Holdings
A72: http://gi.guggenheiminvestments.com/products/etf/details?productId=85
